Workbook

Sheet Navigation
K7: Alok Khad Beej Bhandar - Rewari
L8: Stock and Sales FOR THE PERIOD 01-Apr-2021 TO 30-Apr-2021

Sheet Dealer Report
A1: ALOK KHAD BHANDAR 21-22
A2: KANINA ANAJ MANDI HARYANA
A3: SEED LIC NO -879 PEST LIC NO -487
A4: KHAD LIC (W) 1750 (R) 1137
A5: HORT LI NO 1573 01285-235147
A6: +919416089960,+919813882335
A7: 8689044700
A8: Bayer Crop Science
A9: Stock Summary
A10: 1-Apr-2021 to 30-Apr-2021
B11: Bayer Crop Science
B12: ALOK KHAD BHANDAR 21-22
A13: Particulars | B13: 1-Apr-2021 to 30-Apr-2021
B14: Opening Balance | C14: Inwards | D14: Outwards | E14: Closing Balance
B15: Quantity | C15: Quantity | D15: Quantity | E15: Quantity
A16: ADUE WG 40 GRM
A17: ANTRACOL 100 GRM
A18: BAYER 5210 (1KG)
A19: BAYER 5222(1KG)
A20: BAYER 5222 500 GRM
A21: BAYER 5232 1 KG
A22: BAYER 7172 BG II | B22: 480 | C22: 400 | D22: 600 | E22: 280
A23: BAYER 9001 1.5 KG
A24: BAYER 9001 4.5 KG
A25: BAYER 9444 1.5 KG
A26: BAYER 9444 GOLD
A27: BAYER 9450 1.5 KG
A28: BAYER ADMIRE 2 GRM | C28: 2000 | D28: 1040 | E28: 960
A29: BAYER ALANTO 250 ML
A30: BAYER ALANTO SC 100 ML
A31: BAYER ALIETTE 250 GRM
A32: BAYER ALIETTE WP80 100GM
A33: BAYER AMBITION 1 LIT
A34: BAYER AMBITION 250 ML
A35: BAYER ANTRACOL 1 KG | C35: 30 | E35: 30
A36: BAYER ANTRACOL 250 GRM | C36: 120 | E36: 120
A37: BAYER ANTRACOL 500 GRM | C37: 60 | D37: 5 | E37: 55
A38: BAYER ATANTIS 160 GRM
A39: BAYER BELT EXPERT 100 ML | C39: 150 | D39: 30 | E39: 120
A40: BAYER BUONOS 250 ML | D40: 5 | E40: -5
A41: BAYER BUONOS SC 500 ML | D41: 2 | E41: -2
A42: BAYER CONFIDOR 100 ML | C42: 100 | E42: 100
A43: BAYER CONFIDOR 250 ML | C43: 40 | E43: 40
A44: BAYER CONFIDOR 500 ML | C44: 40 | E44: 40
A45: BAYER EMESTO PRIME 100 ML
A46: BAYER EVERGOL EXTEND 100 ML
A47: BAYER EVERGOL XTEND 40 ML
A48: BAYER FAME 100 ML
A49: BAYER FAME 50 ML | C49: 40 | E49: 40
A50: BAYER FENOS QUICK 100 ML | B50: 30 | D50: 5 | E50: 25
A51: BAYER FOLICUR EC 100 ML
A52: BAYER FOLICUR EC 250 ML | B52: 20 | C52: 40 | D52: 42 | E52: 18
A53: BAYER FOLICUR EC 500 ML | C53: 20 | E53: 20
A54: BAYER FOOST 500 GRM
A55: BAYER GAUCHO 1 LIT
A56: BAYER GAUCHO 5 LIT
A57: BAYER GAUCHO 9 ML
A58: BAYER GAUCHO FS 50 ML
A59: BAYER INFINITO 500 ML
A60: BAYER JUMP 2 GRM | C60: 3200 | D60: 110 | E60: 3090
A61: BAYER KUNA EXPERIENCE 100 ML | C61: 50 | E61: 50
A62: BAYER LARVIN 250 GRM | B62: 60 | D62: 20 | E62: 40
A63: BAYER LAUDIS SC 115 ML
A64: BAYER LAUDIS SC 57.5ML
A65: BAYER LESANTA 100GRM
A66: BAYER LESENTA 250 GRM
A67: BAYER LUCIFER 160 GRM
A68: BAYER LUNA EXPERIENCE 250 ML | C68: 80 | E68: 80
A69: BAYER MELODY DUO 400 GRM | B69: 10 | D69: 3 | E69: 7
A70: BAYER MILLET 9180 1.5 KG
A71: BAYER MILLET PA9072 1.5 KG
A72: BAYER NATIVO 1 KG
A73: BAYER NATIVO 250 GRM
A74: BAYER NATIVO 50 GRM
A75: BAYER NATIVO WG 75 100 GRM
A76: BAYER NATIVO WG75 500GM
A77: BAYER OBERON 100 ML | C77: 150 | D77: 50 | E77: 100
A78: BAYER OBERON 200 ML | B78: 40 | C78: 120 | D78: 80 | E78: 80
A79: BAYER OBERON 500 ML
A80: BAYER PLANOFIX 250 ML
A81: BAYER PLANOFIX SL 100 ML
A82: BAYER RAXIL EASY 13.4ML
A83: BAYER RAXIL EASY FS60 1 LIT
A84: BAYERREGENT 100ML
A85: BAYER REGENT 1 LIT
A86: BAYER REGENT 250 ML
A87: BAYER REGENT 25 KG
A88: BAYER REGENT 500 ML
A89: BAYER REGENT GOLD 100 ML
A90: BAYER REGENT GOLD 250 ML | D90: 5 | E90: -5
A91: BAYER REGENT GR 0.3 % | B91: 1000 | D91: 820 | E91: 180
A92: BAYER REGENT ULTRA GR0 6 (4KG)
A93: BAYER SECTIN WG60 (100GM)
A94: BAYER SECTIN WG 60 (600GM)
A95: BAYER SECTION 1 KG
A96: BAYER SENCOR 100 GRM
A97: BAYER SIMBOLA 250 GRM
A98: BAYER SOLOMAN 1 LIT | C98: 10 | E98: 10
A99: BAYER SOLOMAN 250 ML | B99: 80 | C99: 120 | D99: 50 | E99: 150
A100: BAYER SOLOMAN 500 ML | C100: 40 | D100: 20 | E100: 20
A101: BAYER SPINTOR SC495 (75ML)
A102: BAYER SUNRISE 100 GRM
A103: BAYER VELUM PRIME 500 ML | B103: 20 | D103: 1 | E103: 19
A104: BAYER VELUM PRIME SC 250ML | B104: 40 | E104: 40
A105: BAYER WHIP SUPER 250 ML
A106: BAYER XTEND 40 ML
A107: BAYRE REGENT GR 1 KG
A108: CONFIDOR 1 LIT
A109: CONFIDOR SL200 50 ML
A110: CONFIDOR SUPER 100 ML
A111: CONFIDOR SUPER 50 ML
A112: CONIFDOR SUPER 50 ML
A113: DECIS EC 100 ML
A114: DECIS EC101 100 ML
A115: DECIS EC 1 LIT
A116: DECIS EC28 250ML
A117: DECIS EC28 500 ML
A118: MOVENTO ENERGY 100 ML
A119: MOVENTO ENERGY SC 1 LIT
A120: MOVENTO ENERGY SC 250 ML | B120: 80 | D120: 10 | E120: 70
A121: SOLOMON 100 ML | B121: 50 | D121: 50
A122: SURPASS 7272 BGII | B122: 160 | C122: 200 | D122: 205 | E122: 155
A123: SURPASS SAFAL-555
A124: Grand Total | B124: =SUM(B16:B123) -> 2070 | C124: =SUM(C16:C123) -> 7010 | D124: 3153 | E124: 5927

Sheet Dealer Report working
A1: Particulars | B1: Opening Qty | C1: Purchase Qty | D1: Sales Qty | E1: CLSG | F1: Master Name | K1: Values
A2: ADUE WG 40 GRM | F2: ADUE WG70 15X40G BOT IN | J2: Row Labels | K2: Sum of Opening Qty | L2: Sum of Purchase Qty | M2: Sum of Sales Qty | N2: Sum of CLSG
A3: ANTRACOL 100 GRM | F3: ANTRACOL (T) WP70 50X100GR BAG IN | J3: ADMIRE WG70 125X(8X2GR) BAG IN | L3: 2000 | M3: 1040 | N3: 960
A4: BAYER 5210 (1KG) | F4: MUSTARD PA 5210 (LOC) 30X1KG BAG IN | J4: ADUE WG70 15X40G BOT IN
A5: BAYER 5222(1KG) | F5: MUSTARD 5222 30X1KG BAG IN | J5: ALANTO (T) SC240 40X250ML BOT IN
A6: BAYER 5222 500 GRM | F6: MUSTARD 5222 60X500G BAG IN | J6: ALANTO (T) SC240 50X100ML BOT IN
A7: BAYER 5232 1 KG | F7: MUSTARD PA 5232 (LOC) 30X1KG BAG IN | J7: ALIETTE WP80 20X250GR BAG IN
A8: BAYER 7172 BG II | B8: 480 | C8: 400 | D8: 600 | E8: 280 | F8: SURPASS 7172 BG2 20X450GR BAG IN | J8: ALIETTE WP80 40X100GR BAG IN
A9: BAYER 9001 1.5 KG | F9: MILLET HYBRID 9001 20X1.5 BAG IN | J9: AMBITION 10X1L BOT IN
A10: BAYER 9001 4.5 KG | F10: MILLET 9001 (LOC) 6X4.5KG BAG IN | J10: AMBITION 40X250ML BOT IN
A11: BAYER 9444 1.5 KG | F11: MILLET HYBRID 9444 20X1.5KG BAG IN | J11: ANTRACOL (T) WP70 10X1KG BAG IN | L11: 30 | N11: 30
A12: BAYER 9444 GOLD | F12: MILLET HYBRID 9444 GOLD 20X1.50KG BAG IN | J12: ANTRACOL (T) WP70 20X500GR BAG IN | L12: 60 | M12: 5 | N12: 55
A13: BAYER 9450 1.5 KG | F13: MILLET HYBRID 9450 20X1 5KG BAG IN | J13: ANTRACOL (T) WP70 40X250GR BAG IN | L13: 120 | N13: 120
A14: BAYER ADMIRE 2 GRM | C14: 2000 | D14: 1040 | E14: 960 | F14: ADMIRE WG70 125X(8X2GR) BAG IN | J14: ANTRACOL (T) WP70 50X100GR BAG IN
A15: BAYER ALANTO 250 ML | F15: ALANTO (T) SC240 40X250ML BOT IN | J15: ATLANTIS KL3 6 15X160GR BOT IN
A16: BAYER ALANTO SC 100 ML | F16: ALANTO (T) SC240 50X100ML BOT IN | J16: BELT EXPERT SC480 50X100ML BOT IN | L16: 150 | M16: 30 | N16: 120
A17: BAYER ALIETTE 250 GRM | F17: ALIETTE WP80 20X250GR BAG IN | J17: BUONOS SC430 20X500ML BOT IN | M17: 2 | N17: -2
A18: BAYER ALIETTE WP80 100GM | F18: ALIETTE WP80 40X100GR BAG IN | J18: BUONOS SC430 40X250ML BOT IN | M18: 5 | N18: -5
A19: BAYER AMBITION 1 LIT | F19: AMBITION 10X1L BOT IN | J19: CONFIDOR (T) SL200 100X50ML BOT IN
A20: BAYER AMBITION 250 ML | F20: AMBITION 40X250ML BOT IN | J20: CONFIDOR (T) SL200 10X1L BOT IN
A21: BAYER ANTRACOL 1 KG | C21: 30 | E21: 30 | F21: ANTRACOL (T) WP70 10X1KG BAG IN | J21: CONFIDOR (T) SL200 20X250ML BOT IN | L21: 40 | N21: 40
A22: BAYER ANTRACOL 250 GRM | C22: 120 | E22: 120 | F22: ANTRACOL (T) WP70 40X250GR BAG IN | J22: CONFIDOR (T) SL200 20X500ML BOT IN | L22: 40 | N22: 40
A23: BAYER ANTRACOL 500 GRM | C23: 60 | D23: 5 | E23: 55 | F23: ANTRACOL (T) WP70 20X500GR BAG IN | J23: CONFIDOR (T) SL200 50X100ML BOT IN | L23: 100 | N23: 100
A24: BAYER ATANTIS 160 GRM | F24: ATLANTIS KL3 6 15X160GR BOT IN | J24: CONFIDOR SUPER (T) SC350 50X100ML BOT IN
A25: BAYER BELT EXPERT 100 ML | C25: 150 | D25: 30 | E25: 120 | F25: BELT EXPERT SC480 50X100ML BOT IN | J25: CONFIDOR SUPER (T) SC350 50X50ML BOT IN
A26: BAYER BUONOS 250 ML | D26: 5 | E26: -5 | F26: BUONOS SC430 40X250ML BOT IN | J26: DECIS EC 28 10X1L BOT IN
A27: BAYER BUONOS SC 500 ML | D27: 2 | E27: -2 | F27: BUONOS SC430 20X500ML BOT IN | J27: DECIS EC 28 20X500ML BOT IN
A28: BAYER CONFIDOR 100 ML | C28: 100 | E28: 100 | F28: CONFIDOR (T) SL200 50X100ML BOT IN | J28: DECIS EC 28 40X250ML BOT IN
A29: BAYER CONFIDOR 250 ML | C29: 40 | E29: 40 | F29: CONFIDOR (T) SL200 20X250ML BOT IN | J29: DECIS EC101-2 50X100ML BOX IN
A30: BAYER CONFIDOR 500 ML | C30: 40 | E30: 40 | F30: CONFIDOR (T) SL200 20X500ML BOT IN | J30: DISCOUNTINUE PRODUCT
A31: BAYER EMESTO PRIME 100 ML | F31: EMESTO PRIME FS240 50X100ML BOT IN | J31: EMESTO PRIME FS240 50X100ML BOT IN
A32: BAYER EVERGOL EXTEND 100 ML | F32: EVERGOL XTEND FS308 50X100ML BOT IN | J32: EVERGOL XTEND FS308 100X40ML BOT IN
A33: BAYER EVERGOL XTEND 40 ML | F33: EVERGOL XTEND FS308 100X40ML BOT IN | J33: EVERGOL XTEND FS308 50X100ML BOT IN
A34: BAYER FAME 100 ML | F34: FAME (T) SC480 20X100ML BOT IN | J34: FAME (T) SC480 20X100ML BOT IN
A35: BAYER FAME 50 ML | C35: 40 | E35: 40 | F35: FAME (T) SC480 40X50ML BOT IN | J35: FAME (T) SC480 40X50ML BOT IN | L35: 40 | N35: 40
A36: BAYER FENOS QUICK 100 ML | B36: 30 | D36: 5 | E36: 25 | F36: FENOS QUICK SC150 50X100ML BOT IN | J36: FENOS QUICK SC150 50X100ML BOT IN | K36: 30 | M36: 5 | N36: 25
A37: BAYER FOLICUR EC 100 ML | F37: FOLICUR (T) EC250 50X100ML BOT IN | J37: FOLICUR (T) EC250 20X500ML BOT IN | L37: 20 | N37: 20
A38: BAYER FOLICUR EC 250 ML | B38: 20 | C38: 40 | D38: 42 | E38: 18 | F38: FOLICUR (T) EC250 40X250ML BOT IN | J38: FOLICUR (T) EC250 40X250ML BOT IN | K38: 20 | L38: 40 | M38: 42 | N38: 18
A39: BAYER FOLICUR EC 500 ML | C39: 20 | E39: 20 | F39: FOLICUR (T) EC250 20X500ML BOT IN | J39: FOLICUR (T) EC250 50X100ML BOT IN
A40: BAYER FOOST 500 GRM | F40: FOOST WP50 24X500G BAG IN | J40: FOOST WP50 24X500G BAG IN
A41: BAYER GAUCHO 1 LIT | F41: GAUCHO FS600 2X(5X1L) BOT IN | J41: GAUCHO FS600 100X50ML BOT IN
A42: BAYER GAUCHO 5 LIT | F42: GAUCHO FS600 2X5L BOT IN | J42: GAUCHO FS600 2X(5X1L) BOT IN
A43: BAYER GAUCHO 9 ML | F43: GAUCHO FS600 5X(20X9)ML BOT IN | J43: GAUCHO FS600 2X5L BOT IN
A44: BAYER GAUCHO FS 50 ML | F44: GAUCHO FS600 100X50ML BOT IN | J44: GAUCHO FS600 5X(20X9)ML BOT IN
A45: BAYER INFINITO 500 ML | F45: INFINITO SC687 5 20X500ML BOT IN | J45: INFINITO SC687 5 20X500ML BOT IN
A46: BAYER JUMP 2 GRM | C46: 3200 | D46: 110 | E46: 3090 | F46: JUMP WG80 160X(10X2GR) BAG IN | J46: JUMP WG80 160X(10X2GR) BAG IN | L46: 3200 | M46: 110 | N46: 3090
A47: BAYER KUNA EXPERIENCE 100 ML | C47: 50 | E47: 50 | F47: LUNA EXPERIENCE SC400 50X100ML BOT IN | J47: LARVIN (T) WP75 20X250GR BAG IN | K47: 60 | M47: 20 | N47: 40
A48: BAYER LARVIN 250 GRM | B48: 60 | D48: 20 | E48: 40 | F48: LARVIN (T) WP75 20X250GR BAG IN | J48: LAUDIS SC630 10X57.5ML BOT IN
A49: BAYER LAUDIS SC 115 ML | F49: LAUDIS SC630 8X115ML BOT IN | J49: LAUDIS SC630 8X115ML BOT IN
A50: BAYER LAUDIS SC 57.5ML | F50: LAUDIS SC630 10X57.5ML BOT IN | J50: LESENTA WG80 20X250GR BAG IN
A51: BAYER LESANTA 100GRM | F51: LESENTA WG80 50X100GR BAG IN | J51: LESENTA WG80 50X100GR BAG IN
A52: BAYER LESENTA 250 GRM | F52: LESENTA WG80 20X250GR BAG IN | J52: LUCIFER (T) WP15 25X160GR BAG IN
A53: BAYER LUCIFER 160 GRM | F53: LUCIFER (T) WP15 25X160GR BAG IN | J53: LUNA EXPERIENCE SC400 40X250ML BOT IN | L53: 80 | N53: 80
A54: BAYER LUNA EXPERIENCE 250 ML | C54: 80 | E54: 80 | F54: LUNA EXPERIENCE SC400 40X250ML BOT IN | J54: LUNA EXPERIENCE SC400 50X100ML BOT IN | L54: 50 | N54: 50
A55: BAYER MELODY DUO 400 GRM | B55: 10 | D55: 3 | E55: 7 | F55: MELODY DUO WP66 8 10X400GR BAG IN | J55: MELODY DUO WP66 8 10X400GR BAG IN | K55: 10 | M55: 3 | N55: 7
A56: BAYER MILLET 9180 1.5 KG | F56: MILLET PA 9180 (LOC) 20X1.50KG BAG IN | J56: MILLET 9001 (LOC) 6X4.5KG BAG IN
A57: BAYER MILLET PA9072 1.5 KG | F57: MILLET HYBRID PA9072 20X1.5KG BAG IN | J57: MILLET HYBRID 9001 20X1.5 BAG IN
A58: BAYER NATIVO 1 KG | F58: NATIVO WG75 10X1KG BAG IN | J58: MILLET HYBRID 9444 20X1.5KG BAG IN
A59: BAYER NATIVO 250 GRM | F59: NATIVO WG75 40X250GR BAG IN | J59: MILLET HYBRID 9444 GOLD 20X1.50KG BAG IN
A60: BAYER NATIVO 50 GRM | F60: NATIVO WG75 100X50GR BAG IN | J60: MILLET HYBRID 9450 20X1 5KG BAG IN
A61: BAYER NATIVO WG 75 100 GRM | F61: NATIVO WG75 50X100GR BAG IN | J61: MILLET HYBRID PA9072 20X1.5KG BAG IN
A62: BAYER NATIVO WG75 500GM | F62: NATIVO WG75 20X500GR BAG IN | J62: MILLET PA 9180 (LOC) 20X1.50KG BAG IN
A63: BAYER OBERON 100 ML | C63: 150 | D63: 50 | E63: 100 | F63: OBERON (T) SC240 50X100ML BOT IN | J63: MOVENTO ENERGY SC240 10X1L BOT IN
A64: BAYER OBERON 200 ML | B64: 40 | C64: 120 | D64: 80 | E64: 80 | F64: OBERON (T) SC240 40X200ML BOT IN | J64: MOVENTO ENERGY SC240 40X250ML BOT IN | K64: 80 | M64: 10 | N64: 70
A65: BAYER OBERON 500 ML | F65: OBERON (T) SC240 20X500ML BOT IN | J65: MOVENTO ENERGY SC240 50X100ML BOT IN
A66: BAYER PLANOFIX 250 ML | F66: PLANOFIX SL4 5 40X250ML BOT IN | J66: MUSTARD 5222 30X1KG BAG IN
A67: BAYER PLANOFIX SL 100 ML | F67: PLANOFIX SL4 5 50X100ML BOT IN | J67: MUSTARD 5222 60X500G BAG IN
A68: BAYER RAXIL EASY 13.4ML | F68: RAXIL EASY FS60 10X(20X13.4ML) BOT IN | J68: MUSTARD PA 5210 (LOC) 30X1KG BAG IN
A69: BAYER RAXIL EASY FS60 1 LIT | F69: RAXIL EASY FS60 10X1L BOT IN | J69: MUSTARD PA 5232 (LOC) 30X1KG BAG IN
A70: BAYERREGENT 100ML | F70: REGENT (T) SC50 50X100ML BOT IN | J70: NATIVO WG75 100X50GR BAG IN
A71: BAYER REGENT 1 LIT | F71: REGENT (T) SC50 10X1L BOT IN | J71: NATIVO WG75 10X1KG BAG IN
A72: BAYER REGENT 250 ML | F72: REGENT (T) SC50 20X250ML BOT IN | J72: NATIVO WG75 20X500GR BAG IN
A73: BAYER REGENT 25 KG | F73: REGENT GR0 3 1X25KG BOX WW | J73: NATIVO WG75 40X250GR BAG IN
A74: BAYER REGENT 500 ML | F74: REGENT (T) SC50 20X500ML BOT IN | J74: NATIVO WG75 50X100GR BAG IN
A75: BAYER REGENT GOLD 100 ML | F75: REGENT GOLD SC200 50X100ML BOT IN | J75: OBERON (T) SC240 20X500ML BOT IN
A76: BAYER REGENT GOLD 250 ML | D76: 5 | E76: -5 | F76: REGENT GOLD SC200 40X250ML BOT IN | J76: OBERON (T) SC240 40X200ML BOT IN | K76: 40 | L76: 120 | M76: 80 | N76: 80
A77: BAYER REGENT GR 0.3 % | B77: 1000 | D77: 820 | E77: 180 | F77: REGENT GR0 3 20X1KG BAG IN | J77: OBERON (T) SC240 50X100ML BOT IN | L77: 150 | M77: 50 | N77: 100
A78: BAYER REGENT ULTRA GR0 6 (4KG) | F78: REGENT ULTRA GR0 6 5X4KG BAG IN | J78: PLANOFIX SL4 5 40X250ML BOT IN
A79: BAYER SECTIN WG60 (100GM) | F79: SECTIN WG60 50X100GR BAG IN | J79: PLANOFIX SL4 5 50X100ML BOT IN
A80: BAYER SECTIN WG 60 (600GM) | F80: SECTIN WG60 20X600GR BAG IN | J80: RAXIL EASY FS60 10X(20X13.4ML) BOT IN
A81: BAYER SECTION 1 KG | F81: SECTIN WG60 10X1KG BAG IN | J81: RAXIL EASY FS60 10X1L BOT IN
A82: BAYER SENCOR 100 GRM | F82: SENCOR WP70 60X100GR BAG IN | J82: REGENT (T) SC50 10X1L BOT IN
A83: BAYER SIMBOLA 250 GRM | F83: SIMBOLA (T) SG20 20X250G BOT IN | J83: REGENT (T) SC50 20X250ML BOT IN
A84: BAYER SOLOMAN 1 LIT | C84: 10 | E84: 10 | F84: SOLOMON OD300 10X1L BOT IN | J84: REGENT (T) SC50 20X500ML BOT IN
A85: BAYER SOLOMAN 250 ML | B85: 80 | C85: 120 | D85: 50 | E85: 150 | F85: SOLOMON OD300 40X250ML BOT IN | J85: REGENT (T) SC50 50X100ML BOT IN
A86: BAYER SOLOMAN 500 ML | C86: 40 | D86: 20 | E86: 20 | F86: SOLOMON OD300 20X500ML BOT IN | J86: REGENT GOLD SC200 40X250ML BOT IN | M86: 5 | N86: -5
A87: BAYER SPINTOR SC495 (75ML) | F87: SPINTOR SC495 20X75ML BOT IN | J87: REGENT GOLD SC200 50X100ML BOT IN
A88: BAYER SUNRISE 100 GRM | F88: SUNRICE WG15 100X50GR BOT IN | J88: REGENT GR0 3 1X25KG BOX WW
A89: BAYER VELUM PRIME 500 ML | B89: 20 | D89: 1 | E89: 19 | F89: VELUM PRIME SC400 20X500ML BOT IN | J89: REGENT GR0 3 20X1KG BAG IN | K89: 1000 | M89: 820 | N89: 180
A90: BAYER VELUM PRIME SC 250ML | B90: 40 | E90: 40 | F90: VELUM PRIME SC400 40X250ML BOT IN | J90: REGENT ULTRA GR0 6 5X4KG BAG IN
A91: BAYER WHIP SUPER 250 ML | F91: WHIPSUPER (T) EC90 40X250ML BOT IN | J91: SECTIN WG60 10X1KG BAG IN
A92: BAYER XTEND 40 ML | F92: EVERGOL XTEND FS308 100X40ML BOT IN | J92: SECTIN WG60 20X600GR BAG IN
A93: BAYRE REGENT GR 1 KG | F93: REGENT GR0 3 20X1KG BAG IN | J93: SECTIN WG60 50X100GR BAG IN
A94: CONFIDOR 1 LIT | F94: CONFIDOR (T) SL200 10X1L BOT IN | J94: SENCOR WP70 60X100GR BAG IN
A95: CONFIDOR SL200 50 ML | F95: CONFIDOR (T) SL200 100X50ML BOT IN | J95: SIMBOLA (T) SG20 20X250G BOT IN
A96: CONFIDOR SUPER 100 ML | F96: CONFIDOR SUPER (T) SC350 50X100ML BOT IN | J96: SOLOMON OD300 10X1L BOT IN | L96: 10 | N96: 10
A97: CONFIDOR SUPER 50 ML | F97: CONFIDOR SUPER (T) SC350 50X50ML BOT IN | J97: SOLOMON OD300 20X500ML BOT IN | L97: 40 | M97: 20 | N97: 20
A98: CONIFDOR SUPER 50 ML | F98: CONFIDOR SUPER (T) SC350 50X50ML BOT IN | J98: SOLOMON OD300 40X250ML BOT IN | K98: 80 | L98: 120 | M98: 50 | N98: 150
A99: DECIS EC 100 ML | F99: DECIS EC101-2 50X100ML BOX IN | J99: SOLOMON OD300 50X100ML BOT IN | K99: 50 | M99: 50
A100: DECIS EC101 100 ML | F100: DECIS EC101-2 50X100ML BOX IN | J100: SPINTOR SC495 20X75ML BOT IN
A101: DECIS EC 1 LIT | F101: DECIS EC 28 10X1L BOT IN | J101: SUNRICE WG15 100X50GR BOT IN
A102: DECIS EC28 250ML | F102: DECIS EC 28 40X250ML BOT IN | J102: SURPASS 7172 BG2 20X450GR BAG IN | K102: 480 | L102: 400 | M102: 600 | N102: 280
A103: DECIS EC28 500 ML | F103: DECIS EC 28 20X500ML BOT IN | J103: SURPASS 7272 BG2 (LOC) 20X450G BAG IN | K103: 160 | L103: 200 | M103: 205 | N103: 155
A104: MOVENTO ENERGY 100 ML | F104: MOVENTO ENERGY SC240 50X100ML BOT IN | J104: VELUM PRIME SC400 20X500ML BOT IN | K104: 20 | M104: 1 | N104: 19
A105: MOVENTO ENERGY SC 1 LIT | F105: MOVENTO ENERGY SC240 10X1L BOT IN | J105: VELUM PRIME SC400 40X250ML BOT IN | K105: 40 | N105: 40
A106: MOVENTO ENERGY SC 250 ML | B106: 80 | D106: 10 | E106: 70 | F106: MOVENTO ENERGY SC240 40X250ML BOT IN | J106: WHIPSUPER (T) EC90 40X250ML BOT IN
A107: SOLOMON 100 ML | B107: 50 | D107: 50 | F107: SOLOMON OD300 50X100ML BOT IN | J107: Grand Total | K107: 2070 | L107: 7010 | M107: 3153 | N107: 5927
A108: SURPASS 7272 BGII | B108: 160 | C108: 200 | D108: 205 | E108: 155 | F108: SURPASS 7272 BG2 (LOC) 20X450G BAG IN
A109: SURPASS SAFAL-555 | F109: DISCOUNTINUE PRODUCT

Sheet Master
A1: Item Details | B1: Master Name
A2: ADUE WG 40 GRM | B2: ADUE WG70 15X40G BOT IN
A3: ANTRACOL 100 GRM | B3: ANTRACOL (T) WP70 50X100GR BAG IN
A4: BAYER 5210 (1KG) | B4: MUSTARD PA 5210 (LOC) 30X1KG BAG IN
A5: BAYER 5222(1KG) | B5: MUSTARD 5222 30X1KG BAG IN
A6: BAYER 5222 500 GRM | B6: MUSTARD 5222 60X500G BAG IN
A7: BAYER 5232 1 KG | B7: MUSTARD PA 5232 (LOC) 30X1KG BAG IN
A8: BAYER 7172 BG II | B8: SURPASS 7172 BG2 20X450GR BAG IN
A9: BAYER 9001 1.5 KG | B9: MILLET HYBRID 9001 20X1.5 BAG IN
A10: BAYER 9001 4.5 KG | B10: MILLET 9001 (LOC) 6X4.5KG BAG IN
A11: BAYER 9444 1.5 KG | B11: MILLET HYBRID 9444 20X1.5KG BAG IN
A12: BAYER 9444 GOLD | B12: MILLET HYBRID 9444 GOLD 20X1.50KG BAG IN
A13: BAYER 9450 1.5 KG | B13: MILLET HYBRID 9450 20X1 5KG BAG IN
A14: BAYER ADMIRE 2 GRM | B14: ADMIRE WG70 125X(8X2GR) BAG IN
A15: BAYER ALANTO 250 ML | B15: ALANTO (T) SC240 40X250ML BOT IN
A16: BAYER ALANTO SC 100 ML | B16: ALANTO (T) SC240 50X100ML BOT IN
A17: BAYER ALIETTE 250 GRM | B17: ALIETTE WP80 20X250GR BAG IN
A18: BAYER ALIETTE WP80 100GM | B18: ALIETTE WP80 40X100GR BAG IN
A19: BAYER AMBITION 1 LIT | B19: AMBITION 10X1L BOT IN
A20: BAYER AMBITION 250 ML | B20: AMBITION 40X250ML BOT IN
A21: BAYER ANTRACOL 1 KG | B21: ANTRACOL (T) WP70 10X1KG BAG IN
A22: BAYER ANTRACOL 250 GRM | B22: ANTRACOL (T) WP70 40X250GR BAG IN
A23: BAYER ANTRACOL 500 GRM | B23: ANTRACOL (T) WP70 20X500GR BAG IN
A24: BAYER ATANTIS 160 GRM | B24: ATLANTIS KL3 6 15X160GR BOT IN
A25: BAYER BELT EXPERT 100 ML | B25: BELT EXPERT SC480 50X100ML BOT IN
A26: BAYER BUONOS 250 ML | B26: BUONOS SC430 40X250ML BOT IN
A27: BAYER BUONOS SC 500 ML | B27: BUONOS SC430 20X500ML BOT IN
A28: BAYER CONFIDOR 100 ML | B28: CONFIDOR (T) SL200 50X100ML BOT IN
A29: BAYER CONFIDOR 250 ML | B29: CONFIDOR (T) SL200 20X250ML BOT IN
A30: BAYER CONFIDOR 500 ML | B30: CONFIDOR (T) SL200 20X500ML BOT IN
A31: BAYER EMESTO PRIME 100 ML | B31: EMESTO PRIME FS240 50X100ML BOT IN
A32: BAYER EVERGOL EXTEND 100 ML | B32: EVERGOL XTEND FS308 50X100ML BOT IN
A33: BAYER EVERGOL XTEND 40 ML | B33: EVERGOL XTEND FS308 100X40ML BOT IN
A34: BAYER FAME 100 ML | B34: FAME (T) SC480 20X100ML BOT IN
A35: BAYER FAME 50 ML | B35: FAME (T) SC480 40X50ML BOT IN
A36: BAYER FENOS QUICK 100 ML | B36: FENOS QUICK SC150 50X100ML BOT IN
A37: BAYER FOLICUR EC 100 ML | B37: FOLICUR (T) EC250 50X100ML BOT IN
A38: BAYER FOLICUR EC 250 ML | B38: FOLICUR (T) EC250 40X250ML BOT IN
A39: BAYER FOLICUR EC 500 ML | B39: FOLICUR (T) EC250 20X500ML BOT IN
A40: BAYER FOOST 500 GRM | B40: FOOST WP50 24X500G BAG IN
A41: BAYER GAUCHO 1 LIT | B41: GAUCHO FS600 2X(5X1L) BOT IN
A42: BAYER GAUCHO 5 LIT | B42: GAUCHO FS600 2X5L BOT IN
A43: BAYER GAUCHO 9 ML | B43: GAUCHO FS600 5X(20X9)ML BOT IN
A44: BAYER GAUCHO FS 50 ML | B44: GAUCHO FS600 100X50ML BOT IN
A45: BAYER INFINITO 500 ML | B45: INFINITO SC687 5 20X500ML BOT IN
A46: BAYER JUMP 2 GRM | B46: JUMP WG80 160X(10X2GR) BAG IN
A47: BAYER KUNA EXPERIENCE 100 ML | B47: LUNA EXPERIENCE SC400 50X100ML BOT IN
A48: BAYER LARVIN 250 GRM | B48: LARVIN (T) WP75 20X250GR BAG IN
A49: BAYER LAUDIS SC 115 ML | B49: LAUDIS SC630 8X115ML BOT IN
A50: BAYER LAUDIS SC 57.5ML | B50: LAUDIS SC630 10X57.5ML BOT IN
A51: BAYER LESANTA 100GRM | B51: LESENTA WG80 50X100GR BAG IN
A52: BAYER LESENTA 250 GRM | B52: LESENTA WG80 20X250GR BAG IN
A53: BAYER LUCIFER 160 GRM | B53: LUCIFER (T) WP15 25X160GR BAG IN
A54: BAYER LUNA EXPERIENCE 250 ML | B54: LUNA EXPERIENCE SC400 40X250ML BOT IN
A55: BAYER MELODY DUO 400 GRM | B55: MELODY DUO WP66 8 10X400GR BAG IN
A56: BAYER MILLET 9180 1.5 KG | B56: MILLET PA 9180 (LOC) 20X1.50KG BAG IN
A57: BAYER MILLET PA9072 1.5 KG | B57: MILLET HYBRID PA9072 20X1.5KG BAG IN
A58: BAYER NATIVO 1 KG | B58: NATIVO WG75 10X1KG BAG IN
A59: BAYER NATIVO 250 GRM | B59: NATIVO WG75 40X250GR BAG IN
A60: BAYER NATIVO 50 GRM | B60: NATIVO WG75 100X50GR BAG IN
A61: BAYER NATIVO WG 75 100 GRM | B61: NATIVO WG75 50X100GR BAG IN
A62: BAYER NATIVO WG75 500GM | B62: NATIVO WG75 20X500GR BAG IN
A63: BAYER OBERON 100 ML | B63: OBERON (T) SC240 50X100ML BOT IN
A64: BAYER OBERON 200 ML | B64: OBERON (T) SC240 40X200ML BOT IN
A65: BAYER OBERON 500 ML | B65: OBERON (T) SC240 20X500ML BOT IN
A66: BAYER PLANOFIX 250 ML | B66: PLANOFIX SL4 5 40X250ML BOT IN
A67: BAYER PLANOFIX SL 100 ML | B67: PLANOFIX SL4 5 50X100ML BOT IN
A68: BAYER RAXIL EASY 13.4ML | B68: RAXIL EASY FS60 10X(20X13.4ML) BOT IN
A69: BAYER RAXIL EASY FS60 1 LIT | B69: RAXIL EASY FS60 10X1L BOT IN
A70: BAYERREGENT 100ML | B70: REGENT (T) SC50 50X100ML BOT IN
A71: BAYER REGENT 1 LIT | B71: REGENT (T) SC50 10X1L BOT IN
A72: BAYER REGENT 250 ML | B72: REGENT (T) SC50 20X250ML BOT IN
A73: BAYER REGENT 25 KG | B73: REGENT GR0 3 1X25KG BOX WW
A74: BAYER REGENT 500 ML | B74: REGENT (T) SC50 20X500ML BOT IN
A75: BAYER REGENT GOLD 100 ML | B75: REGENT GOLD SC200 50X100ML BOT IN
A76: BAYER REGENT GOLD 250 ML | B76: REGENT GOLD SC200 40X250ML BOT IN
A77: BAYER REGENT GR 0.3 % | B77: REGENT GR0 3 20X1KG BAG IN
A78: BAYER REGENT ULTRA GR0 6 (4KG) | B78: REGENT ULTRA GR0 6 5X4KG BAG IN
A79: BAYER SECTIN WG60 (100GM) | B79: SECTIN WG60 50X100GR BAG IN
A80: BAYER SECTIN WG 60 (600GM) | B80: SECTIN WG60 20X600GR BAG IN
A81: BAYER SECTION 1 KG | B81: SECTIN WG60 10X1KG BAG IN
A82: BAYER SENCOR 100 GRM | B82: SENCOR WP70 60X100GR BAG IN
A83: BAYER SIMBOLA 250 GRM | B83: SIMBOLA (T) SG20 20X250G BOT IN
A84: BAYER SOLOMAN 1 LIT | B84: SOLOMON OD300 10X1L BOT IN
A85: BAYER SOLOMAN 250 ML | B85: SOLOMON OD300 40X250ML BOT IN
A86: BAYER SOLOMAN 500 ML | B86: SOLOMON OD300 20X500ML BOT IN
A87: BAYER SPINTOR SC495 (75ML) | B87: SPINTOR SC495 20X75ML BOT IN
A88: BAYER SUNRISE 100 GRM | B88: SUNRICE WG15 100X50GR BOT IN
A89: BAYER VELUM PRIME 500 ML | B89: VELUM PRIME SC400 20X500ML BOT IN
A90: BAYER VELUM PRIME SC 250ML | B90: VELUM PRIME SC400 40X250ML BOT IN
A91: BAYER WHIP SUPER 250 ML | B91: WHIPSUPER (T) EC90 40X250ML BOT IN
A92: BAYER XTEND 40 ML | B92: EVERGOL XTEND FS308 100X40ML BOT IN
A93: BAYRE REGENT GR 1 KG | B93: REGENT GR0 3 20X1KG BAG IN
A94: CONFIDOR 1 LIT | B94: CONFIDOR (T) SL200 10X1L BOT IN
A95: CONFIDOR SL200 50 ML | B95: CONFIDOR (T) SL200 100X50ML BOT IN
A96: CONFIDOR SUPER 100 ML | B96: CONFIDOR SUPER (T) SC350 50X100ML BOT IN
A97: CONFIDOR SUPER 50 ML | B97: CONFIDOR SUPER (T) SC350 50X50ML BOT IN
A98: CONIFDOR SUPER 50 ML | B98: CONFIDOR SUPER (T) SC350 50X50ML BOT IN
A99: DECIS EC 100 ML | B99: DECIS EC101-2 50X100ML BOX IN
A100: DECIS EC101 100 ML | B100: DECIS EC101-2 50X100ML BOX IN
A101: DECIS EC 1 LIT | B101: DECIS EC 28 10X1L BOT IN
A102: DECIS EC28 250ML | B102: DECIS EC 28 40X250ML BOT IN
A103: DECIS EC28 500 ML | B103: DECIS EC 28 20X500ML BOT IN
A104: MOVENTO ENERGY 100 ML | B104: MOVENTO ENERGY SC240 50X100ML BOT IN
A105: MOVENTO ENERGY SC 1 LIT | B105: MOVENTO ENERGY SC240 10X1L BOT IN
A106: MOVENTO ENERGY SC 250 ML | B106: MOVENTO ENERGY SC240 40X250ML BOT IN
A107: SOLOMON 100 ML | B107: SOLOMON OD300 50X100ML BOT IN
A108: SURPASS 7272 BGII | B108: SURPASS 7272 BG2 (LOC) 20X450G BAG IN
A109: SURPASS SAFAL-555 | B109: DISCOUNTINUE PRODUCT

Sheet Final Dealer Work
B2: PRODUCT | C2: ITEMALIAS | D2: Bpc | E2: Volume | F2: Opening Qty | G2: Purchase Qty | H2: Purchase Return Qty | I2: Sales Qty | J2: Sales Return Qty | K2: Transfer Qty | L2: Consignment Qty | M2: Adjustment Qty | N2: CLSG
B3: ADMIRE WG70 125X(8X2GR) BAG IN | F3: 0 | G3: 2000 | H3: 0 | I3: 1040 | J3: 0 | K3: 0 | L3: 0 | M3: 0 | N3: 960
B4: ADUE WG70 15X40G BOT IN | F4: 0 | G4: 0 | H4: 0 | I4: 0 | J4: 0 | K4: 0 | L4: 0 | M4: 0 | N4: 0
B5: ALANTO (T) SC240 40X250ML BOT IN | F5: 0 | G5: 0 | H5: 0 | I5: 0 | J5: 0 | K5: 0 | L5: 0 | M5: 0 | N5: 0
B6: ALANTO (T) SC240 50X100ML BOT IN | F6: 0 | G6: 0 | H6: 0 | I6: 0 | J6: 0 | K6: 0 | L6: 0 | M6: 0 | N6: 0
B7: ALIETTE WP80 20X250GR BAG IN | F7: 0 | G7: 0 | H7: 0 | I7: 0 | J7: 0 | K7: 0 | L7: 0 | M7: 0 | N7: 0
B8: ALIETTE WP80 40X100GR BAG IN | F8: 0 | G8: 0 | H8: 0 | I8: 0 | J8: 0 | K8: 0 | L8: 0 | M8: 0 | N8: 0
B9: AMBITION 10X1L BOT IN | F9: 0 | G9: 0 | H9: 0 | I9: 0 | J9: 0 | K9: 0 | L9: 0 | M9: 0 | N9: 0
B10: AMBITION 40X250ML BOT IN | F10: 0 | G10: 0 | H10: 0 | I10: 0 | J10: 0 | K10: 0 | L10: 0 | M10: 0 | N10: 0
B11: ANTRACOL (T) WP70 10X1KG BAG IN | F11: 0 | G11: 30 | H11: 0 | I11: 0 | J11: 0 | K11: 0 | L11: 0 | M11: 0 | N11: 30
B12: ANTRACOL (T) WP70 20X500GR BAG IN | F12: 0 | G12: 60 | H12: 0 | I12: 5 | J12: 0 | K12: 0 | L12: 0 | M12: 0 | N12: 55
B13: ANTRACOL (T) WP70 40X250GR BAG IN | F13: 0 | G13: 120 | H13: 0 | I13: 0 | J13: 0 | K13: 0 | L13: 0 | M13: 0 | N13: 120
B14: ANTRACOL (T) WP70 50X100GR BAG IN | F14: 0 | G14: 0 | H14: 0 | I14: 0 | J14: 0 | K14: 0 | L14: 0 | M14: 0 | N14: 0
B15: ATLANTIS KL3 6 15X160GR BOT IN | F15: 0 | G15: 0 | H15: 0 | I15: 0 | J15: 0 | K15: 0 | L15: 0 | M15: 0 | N15: 0
B16: BELT EXPERT SC480 50X100ML BOT IN | F16: 0 | G16: 150 | H16: 0 | I16: 30 | J16: 0 | K16: 0 | L16: 0 | M16: 0 | N16: 120
B17: BUONOS SC430 20X500ML BOT IN | F17: 0 | G17: 0 | H17: 0 | I17: 2 | J17: 0 | K17: 0 | L17: 0 | M17: 0 | N17: -2
B18: BUONOS SC430 40X250ML BOT IN | F18: 0 | G18: 0 | H18: 0 | I18: 5 | J18: 0 | K18: 0 | L18: 0 | M18: 0 | N18: -5
B19: CONFIDOR (T) SL200 100X50ML BOT IN | F19: 0 | G19: 0 | H19: 0 | I19: 0 | J19: 0 | K19: 0 | L19: 0 | M19: 0 | N19: 0
B20: CONFIDOR (T) SL200 10X1L BOT IN | F20: 0 | G20: 0 | H20: 0 | I20: 0 | J20: 0 | K20: 0 | L20: 0 | M20: 0 | N20: 0
B21: CONFIDOR (T) SL200 20X250ML BOT IN | F21: 0 | G21: 40 | H21: 0 | I21: 0 | J21: 0 | K21: 0 | L21: 0 | M21: 0 | N21: 40
B22: CONFIDOR (T) SL200 20X500ML BOT IN | F22: 0 | G22: 40 | H22: 0 | I22: 0 | J22: 0 | K22: 0 | L22: 0 | M22: 0 | N22: 40
B23: CONFIDOR (T) SL200 50X100ML BOT IN | F23: 0 | G23: 100 | H23: 0 | I23: 0 | J23: 0 | K23: 0 | L23: 0 | M23: 0 | N23: 100
B24: CONFIDOR SUPER (T) SC350 50X100ML BOT IN | F24: 0 | G24: 0 | H24: 0 | I24: 0 | J24: 0 | K24: 0 | L24: 0 | M24: 0 | N24: 0
B25: CONFIDOR SUPER (T) SC350 50X50ML BOT IN | F25: 0 | G25: 0 | H25: 0 | I25: 0 | J25: 0 | K25: 0 | L25: 0 | M25: 0 | N25: 0
B26: DECIS EC 28 10X1L BOT IN | F26: 0 | G26: 0 | H26: 0 | I26: 0 | J26: 0 | K26: 0 | L26: 0 | M26: 0 | N26: 0
B27: DECIS EC 28 20X500ML BOT IN | F27: 0 | G27: 0 | H27: 0 | I27: 0 | J27: 0 | K27: 0 | L27: 0 | M27: 0 | N27: 0
B28: DECIS EC 28 40X250ML BOT IN | F28: 0 | G28: 0 | H28: 0 | I28: 0 | J28: 0 | K28: 0 | L28: 0 | M28: 0 | N28: 0
B29: DECIS EC101-2 50X100ML BOX IN | F29: 0 | G29: 0 | H29: 0 | I29: 0 | J29: 0 | K29: 0 | L29: 0 | M29: 0 | N29: 0
B30: DISCOUNTINUE PRODUCT | F30: 0 | G30: 0 | H30: 0 | I30: 0 | J30: 0 | K30: 0 | L30: 0 | M30: 0 | N30: 0
B31: EMESTO PRIME FS240 50X100ML BOT IN | F31: 0 | G31: 0 | H31: 0 | I31: 0 | J31: 0 | K31: 0 | L31: 0 | M31: 0 | N31: 0
B32: EVERGOL XTEND FS308 100X40ML BOT IN | F32: 0 | G32: 0 | H32: 0 | I32: 0 | J32: 0 | K32: 0 | L32: 0 | M32: 0 | N32: 0
B33: EVERGOL XTEND FS308 50X100ML BOT IN | F33: 0 | G33: 0 | H33: 0 | I33: 0 | J33: 0 | K33: 0 | L33: 0 | M33: 0 | N33: 0
B34: FAME (T) SC480 20X100ML BOT IN | F34: 0 | G34: 0 | H34: 0 | I34: 0 | J34: 0 | K34: 0 | L34: 0 | M34: 0 | N34: 0
B35: FAME (T) SC480 40X50ML BOT IN | F35: 0 | G35: 40 | H35: 0 | I35: 0 | J35: 0 | K35: 0 | L35: 0 | M35: 0 | N35: 40
B36: FENOS QUICK SC150 50X100ML BOT IN | F36: 30 | G36: 0 | H36: 0 | I36: 5 | J36: 0 | K36: 0 | L36: 0 | M36: 0 | N36: 25
B37: FOLICUR (T) EC250 20X500ML BOT IN | F37: 0 | G37: 20 | H37: 0 | I37: 0 | J37: 0 | K37: 0 | L37: 0 | M37: 0 | N37: 20
B38: FOLICUR (T) EC250 40X250ML BOT IN | F38: 20 | G38: 40 | H38: 0 | I38: 42 | J38: 0 | K38: 0 | L38: 0 | M38: 0 | N38: 18
B39: FOLICUR (T) EC250 50X100ML BOT IN | F39: 0 | G39: 0 | H39: 0 | I39: 0 | J39: 0 | K39: 0 | L39: 0 | M39: 0 | N39: 0
B40: FOOST WP50 24X500G BAG IN | F40: 0 | G40: 0 | H40: 0 | I40: 0 | J40: 0 | K40: 0 | L40: 0 | M40: 0 | N40: 0
B41: GAUCHO FS600 100X50ML BOT IN | F41: 0 | G41: 0 | H41: 0 | I41: 0 | J41: 0 | K41: 0 | L41: 0 | M41: 0 | N41: 0
B42: GAUCHO FS600 2X(5X1L) BOT IN | F42: 0 | G42: 0 | H42: 0 | I42: 0 | J42: 0 | K42: 0 | L42: 0 | M42: 0 | N42: 0
B43: GAUCHO FS600 2X5L BOT IN | F43: 0 | G43: 0 | H43: 0 | I43: 0 | J43: 0 | K43: 0 | L43: 0 | M43: 0 | N43: 0
B44: GAUCHO FS600 5X(20X9)ML BOT IN | F44: 0 | G44: 0 | H44: 0 | I44: 0 | J44: 0 | K44: 0 | L44: 0 | M44: 0 | N44: 0
B45: INFINITO SC687 5 20X500ML BOT IN | F45: 0 | G45: 0 | H45: 0 | I45: 0 | J45: 0 | K45: 0 | L45: 0 | M45: 0 | N45: 0
B46: JUMP WG80 160X(10X2GR) BAG IN | F46: 0 | G46: 3200 | H46: 0 | I46: 110 | J46: 0 | K46: 0 | L46: 0 | M46: 0 | N46: 3090
B47: LARVIN (T) WP75 20X250GR BAG IN | F47: 60 | G47: 0 | H47: 0 | I47: 20 | J47: 0 | K47: 0 | L47: 0 | M47: 0 | N47: 40
B48: LAUDIS SC630 10X57.5ML BOT IN | F48: 0 | G48: 0 | H48: 0 | I48: 0 | J48: 0 | K48: 0 | L48: 0 | M48: 0 | N48: 0
B49: LAUDIS SC630 8X115ML BOT IN | F49: 0 | G49: 0 | H49: 0 | I49: 0 | J49: 0 | K49: 0 | L49: 0 | M49: 0 | N49: 0
B50: LESENTA WG80 20X250GR BAG IN | F50: 0 | G50: 0 | H50: 0 | I50: 0 | J50: 0 | K50: 0 | L50: 0 | M50: 0 | N50: 0
B51: LESENTA WG80 50X100GR BAG IN | F51: 0 | G51: 0 | H51: 0 | I51: 0 | J51: 0 | K51: 0 | L51: 0 | M51: 0 | N51: 0
B52: LUCIFER (T) WP15 25X160GR BAG IN | F52: 0 | G52: 0 | H52: 0 | I52: 0 | J52: 0 | K52: 0 | L52: 0 | M52: 0 | N52: 0
B53: LUNA EXPERIENCE SC400 40X250ML BOT IN | F53: 0 | G53: 80 | H53: 0 | I53: 0 | J53: 0 | K53: 0 | L53: 0 | M53: 0 | N53: 80
B54: LUNA EXPERIENCE SC400 50X100ML BOT IN | F54: 0 | G54: 50 | H54: 0 | I54: 0 | J54: 0 | K54: 0 | L54: 0 | M54: 0 | N54: 50
B55: MELODY DUO WP66 8 10X400GR BAG IN | F55: 10 | G55: 0 | H55: 0 | I55: 3 | J55: 0 | K55: 0 | L55: 0 | M55: 0 | N55: 7
B56: MILLET 9001 (LOC) 6X4.5KG BAG IN | F56: 0 | G56: 0 | H56: 0 | I56: 0 | J56: 0 | K56: 0 | L56: 0 | M56: 0 | N56: 0
B57: MILLET HYBRID 9001 20X1.5 BAG IN | F57: 0 | G57: 0 | H57: 0 | I57: 0 | J57: 0 | K57: 0 | L57: 0 | M57: 0 | N57: 0
B58: MILLET HYBRID 9444 20X1.5KG BAG IN | F58: 0 | G58: 0 | H58: 0 | I58: 0 | J58: 0 | K58: 0 | L58: 0 | M58: 0 | N58: 0
B59: MILLET HYBRID 9444 GOLD 20X1.50KG BAG IN | F59: 0 | G59: 0 | H59: 0 | I59: 0 | J59: 0 | K59: 0 | L59: 0 | M59: 0 | N59: 0
B60: MILLET HYBRID 9450 20X1 5KG BAG IN | F60: 0 | G60: 0 | H60: 0 | I60: 0 | J60: 0 | K60: 0 | L60: 0 | M60: 0 | N60: 0
B61: MILLET HYBRID PA9072 20X1.5KG BAG IN | F61: 0 | G61: 0 | H61: 0 | I61: 0 | J61: 0 | K61: 0 | L61: 0 | M61: 0 | N61: 0
B62: MILLET PA 9180 (LOC) 20X1.50KG BAG IN | F62: 0 | G62: 0 | H62: 0 | I62: 0 | J62: 0 | K62: 0 | L62: 0 | M62: 0 | N62: 0
B63: MOVENTO ENERGY SC240 10X1L BOT IN | F63: 0 | G63: 0 | H63: 0 | I63: 0 | J63: 0 | K63: 0 | L63: 0 | M63: 0 | N63: 0
B64: MOVENTO ENERGY SC240 40X250ML BOT IN | F64: 80 | G64: 0 | H64: 0 | I64: 10 | J64: 0 | K64: 0 | L64: 0 | M64: 0 | N64: 70
B65: MOVENTO ENERGY SC240 50X100ML BOT IN | F65: 0 | G65: 0 | H65: 0 | I65: 0 | J65: 0 | K65: 0 | L65: 0 | M65: 0 | N65: 0
B66: MUSTARD 5222 30X1KG BAG IN | F66: 0 | G66: 0 | H66: 0 | I66: 0 | J66: 0 | K66: 0 | L66: 0 | M66: 0 | N66: 0
B67: MUSTARD 5222 60X500G BAG IN | F67: 0 | G67: 0 | H67: 0 | I67: 0 | J67: 0 | K67: 0 | L67: 0 | M67: 0 | N67: 0
B68: MUSTARD PA 5210 (LOC) 30X1KG BAG IN | F68: 0 | G68: 0 | H68: 0 | I68: 0 | J68: 0 | K68: 0 | L68: 0 | M68: 0 | N68: 0
B69: MUSTARD PA 5232 (LOC) 30X1KG BAG IN | F69: 0 | G69: 0 | H69: 0 | I69: 0 | J69: 0 | K69: 0 | L69: 0 | M69: 0 | N69: 0
B70: NATIVO WG75 100X50GR BAG IN | F70: 0 | G70: 0 | H70: 0 | I70: 0 | J70: 0 | K70: 0 | L70: 0 | M70: 0 | N70: 0
B71: NATIVO WG75 10X1KG BAG IN | F71: 0 | G71: 0 | H71: 0 | I71: 0 | J71: 0 | K71: 0 | L71: 0 | M71: 0 | N71: 0
B72: NATIVO WG75 20X500GR BAG IN | F72: 0 | G72: 0 | H72: 0 | I72: 0 | J72: 0 | K72: 0 | L72: 0 | M72: 0 | N72: 0
B73: NATIVO WG75 40X250GR BAG IN | F73: 0 | G73: 0 | H73: 0 | I73: 0 | J73: 0 | K73: 0 | L73: 0 | M73: 0 | N73: 0
B74: NATIVO WG75 50X100GR BAG IN | F74: 0 | G74: 0 | H74: 0 | I74: 0 | J74: 0 | K74: 0 | L74: 0 | M74: 0 | N74: 0
B75: OBERON (T) SC240 20X500ML BOT IN | F75: 0 | G75: 0 | H75: 0 | I75: 0 | J75: 0 | K75: 0 | L75: 0 | M75: 0 | N75: 0
B76: OBERON (T) SC240 40X200ML BOT IN | F76: 40 | G76: 120 | H76: 0 | I76: 80 | J76: 0 | K76: 0 | L76: 0 | M76: 0 | N76: 80
B77: OBERON (T) SC240 50X100ML BOT IN | F77: 0 | G77: 150 | H77: 0 | I77: 50 | J77: 0 | K77: 0 | L77: 0 | M77: 0 | N77: 100
B78: PLANOFIX SL4 5 40X250ML BOT IN | F78: 0 | G78: 0 | H78: 0 | I78: 0 | J78: 0 | K78: 0 | L78: 0 | M78: 0 | N78: 0
B79: PLANOFIX SL4 5 50X100ML BOT IN | F79: 0 | G79: 0 | H79: 0 | I79: 0 | J79: 0 | K79: 0 | L79: 0 | M79: 0 | N79: 0
B80: RAXIL EASY FS60 10X(20X13.4ML) BOT IN | F80: 0 | G80: 0 | H80: 0 | I80: 0 | J80: 0 | K80: 0 | L80: 0 | M80: 0 | N80: 0
B81: RAXIL EASY FS60 10X1L BOT IN | F81: 0 | G81: 0 | H81: 0 | I81: 0 | J81: 0 | K81: 0 | L81: 0 | M81: 0 | N81: 0
B82: REGENT (T) SC50 10X1L BOT IN | F82: 0 | G82: 0 | H82: 0 | I82: 0 | J82: 0 | K82: 0 | L82: 0 | M82: 0 | N82: 0
B83: REGENT (T) SC50 20X250ML BOT IN | F83: 0 | G83: 0 | H83: 0 | I83: 0 | J83: 0 | K83: 0 | L83: 0 | M83: 0 | N83: 0
B84: REGENT (T) SC50 20X500ML BOT IN | F84: 0 | G84: 0 | H84: 0 | I84: 0 | J84: 0 | K84: 0 | L84: 0 | M84: 0 | N84: 0
B85: REGENT (T) SC50 50X100ML BOT IN | F85: 0 | G85: 0 | H85: 0 | I85: 0 | J85: 0 | K85: 0 | L85: 0 | M85: 0 | N85: 0
B86: REGENT GOLD SC200 40X250ML BOT IN | F86: 0 | G86: 0 | H86: 0 | I86: 5 | J86: 0 | K86: 0 | L86: 0 | M86: 0 | N86: -5
B87: REGENT GOLD SC200 50X100ML BOT IN | F87: 0 | G87: 0 | H87: 0 | I87: 0 | J87: 0 | K87: 0 | L87: 0 | M87: 0 | N87: 0
B88: REGENT GR0 3 1X25KG BOX WW | F88: 0 | G88: 0 | H88: 0 | I88: 0 | J88: 0 | K88: 0 | L88: 0 | M88: 0 | N88: 0
B89: REGENT GR0 3 20X1KG BAG IN | F89: 1000 | G89: 0 | H89: 0 | I89: 820 | J89: 0 | K89: 0 | L89: 0 | M89: 0 | N89: 180
B90: REGENT ULTRA GR0 6 5X4KG BAG IN | F90: 0 | G90: 0 | H90: 0 | I90: 0 | J90: 0 | K90: 0 | L90: 0 | M90: 0 | N90: 0
B91: SECTIN WG60 10X1KG BAG IN | F91: 0 | G91: 0 | H91: 0 | I91: 0 | J91: 0 | K91: 0 | L91: 0 | M91: 0 | N91: 0
B92: SECTIN WG60 20X600GR BAG IN | F92: 0 | G92: 0 | H92: 0 | I92: 0 | J92: 0 | K92: 0 | L92: 0 | M92: 0 | N92: 0
B93: SECTIN WG60 50X100GR BAG IN | F93: 0 | G93: 0 | H93: 0 | I93: 0 | J93: 0 | K93: 0 | L93: 0 | M93: 0 | N93: 0
B94: SENCOR WP70 60X100GR BAG IN | F94: 0 | G94: 0 | H94: 0 | I94: 0 | J94: 0 | K94: 0 | L94: 0 | M94: 0 | N94: 0
B95: SIMBOLA (T) SG20 20X250G BOT IN | F95: 0 | G95: 0 | H95: 0 | I95: 0 | J95: 0 | K95: 0 | L95: 0 | M95: 0 | N95: 0
B96: SOLOMON OD300 10X1L BOT IN | F96: 0 | G96: 10 | H96: 0 | I96: 0 | J96: 0 | K96: 0 | L96: 0 | M96: 0 | N96: 10
B97: SOLOMON OD300 20X500ML BOT IN | F97: 0 | G97: 40 | H97: 0 | I97: 20 | J97: 0 | K97: 0 | L97: 0 | M97: 0 | N97: 20
B98: SOLOMON OD300 40X250ML BOT IN | F98: 80 | G98: 120 | H98: 0 | I98: 50 | J98: 0 | K98: 0 | L98: 0 | M98: 0 | N98: 150
B99: SOLOMON OD300 50X100ML BOT IN | F99: 50 | G99: 0 | H99: 0 | I99: 50 | J99: 0 | K99: 0 | L99: 0 | M99: 0 | N99: 0
B100: SPINTOR SC495 20X75ML BOT IN | F100: 0 | G100: 0 | H100: 0 | I100: 0 | J100: 0 | K100: 0 | L100: 0 | M100: 0 | N100: 0
B101: SUNRICE WG15 100X50GR BOT IN | F101: 0 | G101: 0 | H101: 0 | I101: 0 | J101: 0 | K101: 0 | L101: 0 | M101: 0 | N101: 0
B102: SURPASS 7172 BG2 20X450GR BAG IN | F102: 480 | G102: 400 | H102: 0 | I102: 600 | J102: 0 | K102: 0 | L102: 0 | M102: 0 | N102: 280
B103: SURPASS 7272 BG2 (LOC) 20X450G BAG IN | F103: 160 | G103: 200 | H103: 0 | I103: 205 | J103: 0 | K103: 0 | L103: 0 | M103: 0 | N103: 155
B104: VELUM PRIME SC400 20X500ML BOT IN | F104: 20 | G104: 0 | H104: 0 | I104: 1 | J104: 0 | K104: 0 | L104: 0 | M104: 0 | N104: 19
B105: VELUM PRIME SC400 40X250ML BOT IN | F105: 40 | G105: 0 | H105: 0 | I105: 0 | J105: 0 | K105: 0 | L105: 0 | M105: 0 | N105: 40
B106: WHIPSUPER (T) EC90 40X250ML BOT IN | F106: 0 | G106: 0 | H106: 0 | I106: 0 | J106: 0 | K106: 0 | L106: 0 | M106: 0 | N106: 0
B107: Grand Total | F107: 2070 | G107: 7010 | H107: 0 | I107: 3153 | J107: 0 | K107: 0 | L107: 0 | M107: 0 | N107: 5927

Sheet Zylem SNS Report
A2: Company Name:-BAYER
A3: Stock and Sales FOR THE PERIOD 01-Apr-2021 TO 30-Apr-2021
A4: Generated on 6/5/2021 4:50:33 AM
A5: DISTRIBUTOR PRODUCTWISE
A6: OUTPUT IN : PIC,DETAILS AS : Column,CONSIDER : Voucher Date,INCLUDE VALIDATION : False
A7: DISTRIBUTOR:Alok Khad Beej Bhandar - Rewari,
A8: DISTRIBUTOR | B8: SAPCODE | C8: PRODUCT | D8: ITEMALIAS | E8: Opening Qty | F8: Purchase Qty | G8: Purchase Return Qty | H8: Sales Qty | I8: Sales Return Qty | J8: Transfer Qty | K8: Consignment Qty | L8: Adjustment Qty | M8: CLSG
A9: Alok Khad Beej Bhandar - Rewari | B9: 9067917 | C9: ADMIRE WG70 125X(8X2GR) BAG IN | D9: 6101665 | E9: 0 | F9: 2000 | G9: 0 | H9: 1040 | I9: 0 | J9: 0 | K9: 0 | L9: 0 | M9: 960
A10: Alok Khad Beej Bhandar - Rewari | B10: 9067917 | C10: ALIETTE WP80 20X250GR BAG IN | D10: 3822358 | E10: 0 | F10: 0 | G10: 0 | H10: 0 | I10: 0 | J10: 0 | K10: 0 | L10: 0 | M10: 0
A11: Alok Khad Beej Bhandar - Rewari | B11: 9067917 | C11: ALIETTE WP80 40X100GR BAG IN | D11: 3822331 | E11: 0 | F11: 0 | G11: 0 | H11: 0 | I11: 0 | J11: 0 | K11: 0 | L11: 0 | M11: 0
A12: Alok Khad Beej Bhandar - Rewari | B12: 9067917 | C12: AMBITION 10X1L BOT IN | D12: 86212544 | E12: 0 | F12: 0 | G12: 0 | H12: 0 | I12: 0 | J12: 0 | K12: 0 | L12: 0 | M12: 0
A13: Alok Khad Beej Bhandar - Rewari | B13: 9067917 | C13: AMBITION 40X250ML BOT IN | D13: 86232308 | E13: 0 | F13: 0 | G13: 0 | H13: 0 | I13: 0 | J13: 0 | K13: 0 | L13: 0 | M13: 0
A14: Alok Khad Beej Bhandar - Rewari | B14: 9067917 | C14: ANTRACOL (T) WP70 10X1KG BAG IN | D14: 6077322 | E14: 0 | F14: 30 | G14: 0 | H14: 0 | I14: 0 | J14: 0 | K14: 0 | L14: 0 | M14: 30
A15: Alok Khad Beej Bhandar - Rewari | B15: 9067917 | C15: ANTRACOL (T) WP70 20X500GR BAG IN | D15: 5999978 | E15: 0 | F15: 60 | G15: 0 | H15: 5 | I15: 0 | J15: 0 | K15: 0 | L15: 0 | M15: 55
A16: Alok Khad Beej Bhandar - Rewari | B16: 9067917 | C16: ANTRACOL (T) WP70 40X250GR BAG IN | D16: 6112179 | E16: 0 | F16: 120 | G16: 0 | H16: 0 | I16: 0 | J16: 0 | K16: 0 | L16: 0 | M16: 120
A17: Alok Khad Beej Bhandar - Rewari | B17: 9067917 | C17: ANTRACOL (T) WP70 50X100GR BAG IN | D17: 6113191 | E17: 0 | F17: 0 | G17: 0 | H17: 0 | I17: 0 | J17: 0 | K17: 0 | L17: 0 | M17: 0
A18: Alok Khad Beej Bhandar - Rewari | B18: 9067917 | C18: ATLANTIS KL3 6 15X160GR BOT IN | D18: 3822560 | E18: 0 | F18: 0 | G18: 0 | H18: 0 | I18: 0 | J18: 0 | K18: 0 | L18: 0 | M18: 0
A19: Alok Khad Beej Bhandar - Rewari | B19: 9067917 | C19: BELT EXPERT SC480 50X100ML BOT IN | D19: 79722869 | E19: 0 | F19: 150 | G19: 0 | H19: 30 | I19: 0 | J19: 0 | K19: 0 | L19: 0 | M19: 120
A20: Alok Khad Beej Bhandar - Rewari | B20: 9067917 | C20: CONFIDOR (T) SL200 10X1L BOT IN | D20: 5697343 | E20: 0 | F20: 0 | G20: 0 | H20: 0 | I20: 0 | J20: 0 | K20: 0 | L20: 0 | M20: 0
A21: Alok Khad Beej Bhandar - Rewari | B21: 9067917 | C21: CONFIDOR (T) SL200 20X250ML BOT IN | D21: 5699494 | E21: 0 | F21: 40 | G21: 0 | H21: 0 | I21: 0 | J21: 0 | K21: 0 | L21: 0 | M21: 40
A22: Alok Khad Beej Bhandar - Rewari | B22: 9067917 | C22: CONFIDOR (T) SL200 20X500ML BOT IN | D22: 5704439 | E22: 0 | F22: 40 | G22: 0 | H22: 0 | I22: 0 | J22: 0 | K22: 0 | L22: 0 | M22: 40
A23: Alok Khad Beej Bhandar - Rewari | B23: 9067917 | C23: CONFIDOR (T) SL200 50X100ML BOT IN | D23: 5703475 | E23: 0 | F23: 100 | G23: 0 | H23: 0 | I23: 0 | J23: 0 | K23: 0 | L23: 0 | M23: 100
A24: Alok Khad Beej Bhandar - Rewari | B24: 9067917 | C24: DECIS EC 28 20X500ML BOT IN | D24: 3823370 | E24: 0 | F24: 0 | G24: 0 | H24: 0 | I24: 0 | J24: 0 | K24: 0 | L24: 0 | M24: 0
A25: Alok Khad Beej Bhandar - Rewari | B25: 9067917 | C25: DECIS EC 28 40X250ML BOT IN | D25: 3823346 | E25: 0 | F25: 0 | G25: 0 | H25: 0 | I25: 0 | J25: 0 | K25: 0 | L25: 0 | M25: 0
A26: Alok Khad Beej Bhandar - Rewari | B26: 9067917 | C26: EMESTO PRIME FS240 50X100ML BOT IN | D26: 80845774 | E26: 0 | F26: 0 | G26: 0 | H26: 0 | I26: 0 | J26: 0 | K26: 0 | L26: 0 | M26: 0
A27: Alok Khad Beej Bhandar - Rewari | B27: 9067917 | C27: EVERGOL XTEND FS308 100X40ML BOT IN | D27: 85402838 | E27: 0 | F27: 0 | G27: 0 | H27: 0 | I27: 0 | J27: 0 | K27: 0 | L27: 0 | M27: 0
A28: Alok Khad Beej Bhandar - Rewari | B28: 9067917 | C28: EVERGOL XTEND FS308 50X100ML BOT IN | D28: 84065757 | E28: 0 | F28: 0 | G28: 0 | H28: 0 | I28: 0 | J28: 0 | K28: 0 | L28: 0 | M28: 0
A29: Alok Khad Beej Bhandar - Rewari | B29: 9067917 | C29: FAME (T) SC480 20X100ML BOT IN | D29: 79266197 | E29: 0 | F29: 0 | G29: 0 | H29: 0 | I29: 0 | J29: 0 | K29: 0 | L29: 0 | M29: 0
A30: Alok Khad Beej Bhandar - Rewari | B30: 9067917 | C30: FAME (T) SC480 40X50ML BOT IN | D30: 79224699 | E30: 0 | F30: 40 | G30: 0 | H30: 0 | I30: 0 | J30: 0 | K30: 0 | L30: 0 | M30: 40
A31: Alok Khad Beej Bhandar - Rewari | B31: 9067917 | C31: FENOS QUICK SC150 50X100ML BOT IN | D31: 80942990 | E31: 30 | F31: 0 | G31: 0 | H31: 5 | I31: 0 | J31: 0 | K31: 0 | L31: 0 | M31: 25
A32: Alok Khad Beej Bhandar - Rewari | B32: 9067917 | C32: FOLICUR (T) EC250 20X500ML BOT IN | D32: 79652933 | E32: 0 | F32: 20 | G32: 0 | H32: 0 | I32: 0 | J32: 0 | K32: 0 | L32: 0 | M32: 20
A33: Alok Khad Beej Bhandar - Rewari | B33: 9067917 | C33: FOLICUR (T) EC250 40X250ML BOT IN | D33: 79682271 | E33: 20 | F33: 40 | G33: 0 | H33: 42 | I33: 0 | J33: 0 | K33: 0 | L33: 0 | M33: 18
A34: Alok Khad Beej Bhandar - Rewari | B34: 9067917 | C34: FOLICUR (T) EC250 50X100ML BOT IN | D34: 79629125 | E34: 0 | F34: 0 | G34: 0 | H34: 0 | I34: 0 | J34: 0 | K34: 0 | L34: 0 | M34: 0
A35: Alok Khad Beej Bhandar - Rewari | B35: 9067917 | C35: FOOST WP50 24X500G BAG IN | D35: 85811770 | E35: 0 | F35: 0 | G35: 0 | H35: 0 | I35: 0 | J35: 0 | K35: 0 | L35: 0 | M35: 0
A36: Alok Khad Beej Bhandar - Rewari | B36: 9067917 | C36: GAUCHO FS600 2X(5X1L) BOT IN | D36: 3823907 | E36: 0 | F36: 0 | G36: 0 | H36: 0 | I36: 0 | J36: 0 | K36: 0 | L36: 0 | M36: 0
A37: Alok Khad Beej Bhandar - Rewari | B37: 9067917 | C37: GAUCHO FS600 100X50ML BOT IN | D37: 80034733 | E37: 0 | F37: 0 | G37: 0 | H37: 0 | I37: 0 | J37: 0 | K37: 0 | L37: 0 | M37: 0
A38: Alok Khad Beej Bhandar - Rewari | B38: 9067917 | C38: GAUCHO FS600 2X5L BOT IN | D38: 3823915 | E38: 0 | F38: 0 | G38: 0 | H38: 0 | I38: 0 | J38: 0 | K38: 0 | L38: 0 | M38: 0
A39: Alok Khad Beej Bhandar - Rewari | B39: 9067917 | C39: GAUCHO FS600 5X(20X9)ML BOT IN | D39: 85824333 | E39: 0 | F39: 0 | G39: 0 | H39: 0 | I39: 0 | J39: 0 | K39: 0 | L39: 0 | M39: 0
A40: Alok Khad Beej Bhandar - Rewari | B40: 9067917 | C40: JUMP WG80 160X(10X2GR) BAG IN | D40: 79215304 | E40: 0 | F40: 3200 | G40: 0 | H40: 110 | I40: 0 | J40: 0 | K40: 0 | L40: 0 | M40: 3090
A41: Alok Khad Beej Bhandar - Rewari | B41: 9067917 | C41: LARVIN (T) WP75 20X250GR BAG IN | D41: 6003167 | E41: 60 | F41: 0 | G41: 0 | H41: 20 | I41: 0 | J41: 0 | K41: 0 | L41: 0 | M41: 40
A42: Alok Khad Beej Bhandar - Rewari | B42: 9067917 | C42: LAUDIS SC630 10X57.5ML BOT IN | D42: 84470481 | E42: 0 | F42: 0 | G42: 0 | H42: 0 | I42: 0 | J42: 0 | K42: 0 | L42: 0 | M42: 0
A43: Alok Khad Beej Bhandar - Rewari | B43: 9067917 | C43: LAUDIS SC630 8X115ML BOT IN | D43: 80491085 | E43: 0 | F43: 0 | G43: 0 | H43: 0 | I43: 0 | J43: 0 | K43: 0 | L43: 0 | M43: 0
A44: Alok Khad Beej Bhandar - Rewari | B44: 9067917 | C44: LESENTA WG80 20X250GR BAG IN | D44: 80557817 | E44: 0 | F44: 0 | G44: 0 | H44: 0 | I44: 0 | J44: 0 | K44: 0 | L44: 0 | M44: 0
A45: Alok Khad Beej Bhandar - Rewari | B45: 9067917 | C45: LESENTA WG80 50X100GR BAG IN | D45: 80503385 | E45: 0 | F45: 0 | G45: 0 | H45: 0 | I45: 0 | J45: 0 | K45: 0 | L45: 0 | M45: 0
A46: Alok Khad Beej Bhandar - Rewari | B46: 9067917 | C46: LUNA EXPERIENCE SC400 40X250ML BOT IN | D46: 80549652 | E46: 0 | F46: 80 | G46: 0 | H46: 0 | I46: 0 | J46: 0 | K46: 0 | L46: 0 | M46: 80
A47: Alok Khad Beej Bhandar - Rewari | B47: 9067917 | C47: LUNA EXPERIENCE SC400 50X100ML BOT IN | D47: 80199414 | E47: 0 | F47: 50 | G47: 0 | H47: 0 | I47: 0 | J47: 0 | K47: 0 | L47: 0 | M47: 50
A48: Alok Khad Beej Bhandar - Rewari | B48: 9067917 | C48: MELODY DUO WP66 8 10X400GR BAG IN | D48: 80994974 | E48: 10 | F48: 0 | G48: 0 | H48: 3 | I48: 0 | J48: 0 | K48: 0 | L48: 0 | M48: 7
A49: Alok Khad Beej Bhandar - Rewari | B49: 9067917 | C49: MILLET HYBRID 9001 20X1.5 BAG IN | D49: 84986003 | E49: 0 | F49: 0 | G49: 0 | H49: 0 | I49: 0 | J49: 0 | K49: 0 | L49: 0 | M49: 0
A50: Alok Khad Beej Bhandar - Rewari | B50: 9067917 | C50: MILLET HYBRID 9444 20X1.5KG BAG IN | D50: 56000147 | E50: 0 | F50: 0 | G50: 0 | H50: 0 | I50: 0 | J50: 0 | K50: 0 | L50: 0 | M50: 0
A51: Alok Khad Beej Bhandar - Rewari | B51: 9067917 | C51: MILLET HYBRID 9450 20X1 5KG BAG IN | D51: 80228716 | E51: 0 | F51: 0 | G51: 0 | H51: 0 | I51: 0 | J51: 0 | K51: 0 | L51: 0 | M51: 0
A52: Alok Khad Beej Bhandar - Rewari | B52: 9067917 | C52: MOVENTO ENERGY SC240 10X1L BOT IN | D52: 79556837 | E52: 0 | F52: 0 | G52: 0 | H52: 0 | I52: 0 | J52: 0 | K52: 0 | L52: 0 | M52: 0
A53: Alok Khad Beej Bhandar - Rewari | B53: 9067917 | C53: MOVENTO ENERGY SC240 40X250ML BOT IN | D53: 79679505 | E53: 80 | F53: 0 | G53: 0 | H53: 10 | I53: 0 | J53: 0 | K53: 0 | L53: 0 | M53: 70
A54: Alok Khad Beej Bhandar - Rewari | B54: 9067917 | C54: MOVENTO ENERGY SC240 50X100ML BOT IN | D54: 79722605 | E54: 0 | F54: 0 | G54: 0 | H54: 0 | I54: 0 | J54: 0 | K54: 0 | L54: 0 | M54: 0
A55: Alok Khad Beej Bhandar - Rewari | B55: 9067917 | C55: MUSTARD 5222 30X1KG BAG IN | D55: 81740844 | E55: 0 | F55: 0 | G55: 0 | H55: 0 | I55: 0 | J55: 0 | K55: 0 | L55: 0 | M55: 0
A56: Alok Khad Beej Bhandar - Rewari | B56: 9067917 | C56: MUSTARD 5222 60X500G BAG IN | D56: 81771014 | E56: 0 | F56: 0 | G56: 0 | H56: 0 | I56: 0 | J56: 0 | K56: 0 | L56: 0 | M56: 0
A57: Alok Khad Beej Bhandar - Rewari | B57: 9067917 | C57: NATIVO WG75 100X50GR BAG IN | D57: 80580061 | E57: 0 | F57: 0 | G57: 0 | H57: 0 | I57: 0 | J57: 0 | K57: 0 | L57: 0 | M57: 0
A58: Alok Khad Beej Bhandar - Rewari | B58: 9067917 | C58: NATIVO WG75 10X1KG BAG IN | D58: 80525346 | E58: 0 | F58: 0 | G58: 0 | H58: 0 | I58: 0 | J58: 0 | K58: 0 | L58: 0 | M58: 0
A59: Alok Khad Beej Bhandar - Rewari | B59: 9067917 | C59: NATIVO WG75 20X500GR BAG IN | D59: 79198698 | E59: 0 | F59: 0 | G59: 0 | H59: 0 | I59: 0 | J59: 0 | K59: 0 | L59: 0 | M59: 0
A60: Alok Khad Beej Bhandar - Rewari | B60: 9067917 | C60: NATIVO WG75 40X250GR BAG IN | D60: 79237790 | E60: 0 | F60: 0 | G60: 0 | H60: 0 | I60: 0 | J60: 0 | K60: 0 | L60: 0 | M60: 0
A61: Alok Khad Beej Bhandar - Rewari | B61: 9067917 | C61: NATIVO WG75 50X100GR BAG IN | D61: 79304102 | E61: 0 | F61: 0 | G61: 0 | H61: 0 | I61: 0 | J61: 0 | K61: 0 | L61: 0 | M61: 0
A62: Alok Khad Beej Bhandar - Rewari | B62: 9067917 | C62: OBERON (T) SC240 20X500ML BOT IN | D62: 80026471 | E62: 0 | F62: 0 | G62: 0 | H62: 0 | I62: 0 | J62: 0 | K62: 0 | L62: 0 | M62: 0
A63: Alok Khad Beej Bhandar - Rewari | B63: 9067917 | C63: OBERON (T) SC240 40X200ML BOT IN | D63: 79971362 | E63: 40 | F63: 120 | G63: 0 | H63: 80 | I63: 0 | J63: 0 | K63: 0 | L63: 0 | M63: 80
A64: Alok Khad Beej Bhandar - Rewari | B64: 9067917 | C64: OBERON (T) SC240 50X100ML BOT IN | D64: 79998538 | E64: 0 | F64: 150 | G64: 0 | H64: 50 | I64: 0 | J64: 0 | K64: 0 | L64: 0 | M64: 100
A65: Alok Khad Beej Bhandar - Rewari | B65: 9067917 | C65: PLANOFIX SL4 5 40X250ML BOT IN | D65: 3825128 | E65: 0 | F65: 0 | G65: 0 | H65: 0 | I65: 0 | J65: 0 | K65: 0 | L65: 0 | M65: 0
A66: Alok Khad Beej Bhandar - Rewari | B66: 9067917 | C66: PLANOFIX SL4 5 50X100ML BOT IN | D66: 3825098 | E66: 0 | F66: 0 | G66: 0 | H66: 0 | I66: 0 | J66: 0 | K66: 0 | L66: 0 | M66: 0
A67: Alok Khad Beej Bhandar - Rewari | B67: 9067917 | C67: RAXIL EASY FS60 10X1L BOT IN | D67: 80044240 | E67: 0 | F67: 0 | G67: 0 | H67: 0 | I67: 0 | J67: 0 | K67: 0 | L67: 0 | M67: 0
A68: Alok Khad Beej Bhandar - Rewari | B68: 9067917 | C68: REGENT (T) SC50 20X250ML BOT IN | D68: 5976951 | E68: 0 | F68: 0 | G68: 0 | H68: 0 | I68: 0 | J68: 0 | K68: 0 | L68: 0 | M68: 0
A69: Alok Khad Beej Bhandar - Rewari | B69: 9067917 | C69: REGENT (T) SC50 20X500ML BOT IN | D69: 5987678 | E69: 0 | F69: 0 | G69: 0 | H69: 0 | I69: 0 | J69: 0 | K69: 0 | L69: 0 | M69: 0
A70: Alok Khad Beej Bhandar - Rewari | B70: 9067917 | C70: REGENT (T) SC50 50X100ML BOT IN | D70: 5975343 | E70: 0 | F70: 0 | G70: 0 | H70: 0 | I70: 0 | J70: 0 | K70: 0 | L70: 0 | M70: 0
A71: Alok Khad Beej Bhandar - Rewari | B71: 9067917 | C71: REGENT GOLD SC200 40X250ML BOT IN | D71: 84126616 | E71: 0 | F71: 0 | G71: 0 | H71: 5 | I71: 0 | J71: 0 | K71: 0 | L71: 0 | M71: -5
A72: Alok Khad Beej Bhandar - Rewari | B72: 9067917 | C72: REGENT GOLD SC200 50X100ML BOT IN | D72: 84133965 | E72: 0 | F72: 0 | G72: 0 | H72: 0 | I72: 0 | J72: 0 | K72: 0 | L72: 0 | M72: 0
A73: Alok Khad Beej Bhandar - Rewari | B73: 9067917 | C73: REGENT GR0 3 1X25KG BOX WW | D73: 79384181 | E73: 0 | F73: 0 | G73: 0 | H73: 0 | I73: 0 | J73: 0 | K73: 0 | L73: 0 | M73: 0
A74: Alok Khad Beej Bhandar - Rewari | B74: 9067917 | C74: REGENT GR0 3 20X1KG BAG IN | D74: 79667140 | E74: 1000 | F74: 0 | G74: 0 | H74: 820 | I74: 0 | J74: 0 | K74: 0 | L74: 0 | M74: 180
A75: Alok Khad Beej Bhandar - Rewari | B75: 9067917 | C75: REGENT ULTRA GR0 6 5X4KG BAG IN | D75: 84093394 | E75: 0 | F75: 0 | G75: 0 | H75: 0 | I75: 0 | J75: 0 | K75: 0 | L75: 0 | M75: 0
A76: Alok Khad Beej Bhandar - Rewari | B76: 9067917 | C76: SECTIN WG60 10X1KG BAG IN | D76: 6132374 | E76: 0 | F76: 0 | G76: 0 | H76: 0 | I76: 0 | J76: 0 | K76: 0 | L76: 0 | M76: 0
A77: Alok Khad Beej Bhandar - Rewari | B77: 9067917 | C77: SENCOR WP70 60X100GR BAG IN | D77: 3825578 | E77: 0 | F77: 0 | G77: 0 | H77: 0 | I77: 0 | J77: 0 | K77: 0 | L77: 0 | M77: 0
A78: Alok Khad Beej Bhandar - Rewari | B78: 9067917 | C78: SIMBOLA (T) SG20 20X250G BOT IN | D78: 85758136 | E78: 0 | F78: 0 | G78: 0 | H78: 0 | I78: 0 | J78: 0 | K78: 0 | L78: 0 | M78: 0
A79: Alok Khad Beej Bhandar - Rewari | B79: 9067917 | C79: SOLOMON OD300 10X1L BOT IN | D79: 79637365 | E79: 0 | F79: 10 | G79: 0 | H79: 0 | I79: 0 | J79: 0 | K79: 0 | L79: 0 | M79: 10
A80: Alok Khad Beej Bhandar - Rewari | B80: 9067917 | C80: SOLOMON OD300 20X500ML BOT IN | D80: 79987870 | E80: 0 | F80: 40 | G80: 0 | H80: 20 | I80: 0 | J80: 0 | K80: 0 | L80: 0 | M80: 20
A81: Alok Khad Beej Bhandar - Rewari | B81: 9067917 | C81: SOLOMON OD300 40X250ML BOT IN | D81: 79706723 | E81: 80 | F81: 120 | G81: 0 | H81: 50 | I81: 0 | J81: 0 | K81: 0 | L81: 0 | M81: 150
A82: Alok Khad Beej Bhandar - Rewari | B82: 9067917 | C82: SOLOMON OD300 50X100ML BOT IN | D82: 79641931 | E82: 50 | F82: 0 | G82: 0 | H82: 50 | I82: 0 | J82: 0 | K82: 0 | L82: 0 | M82: 0
A83: Alok Khad Beej Bhandar - Rewari | B83: 9067917 | C83: SUNRICE WG15 100X50GR BOT IN | D83: 80219121 | E83: 0 | F83: 0 | G83: 0 | H83: 0 | I83: 0 | J83: 0 | K83: 0 | L83: 0 | M83: 0
A84: Alok Khad Beej Bhandar - Rewari | B84: 9067917 | C84: SURPASS 7272 BG2 (LOC) 20X450G BAG IN | D84: 85331000 | E84: 160 | F84: 200 | G84: 0 | H84: 205 | I84: 0 | J84: 0 | K84: 0 | L84: 0 | M84: 155
A85: Alok Khad Beej Bhandar - Rewari | B85: 9067917 | C85: VELUM PRIME SC400 20X500ML BOT IN | D85: 84407038 | E85: 20 | F85: 0 | G85: 0 | H85: 1 | I85: 0 | J85: 0 | K85: 0 | L85: 0 | M85: 19
A86: Alok Khad Beej Bhandar - Rewari | B86: 9067917 | C86: VELUM PRIME SC400 40X250ML BOT IN | D86: 84474886 | E86: 40 | F86: 0 | G86: 0 | H86: 0 | I86: 0 | J86: 0 | K86: 0 | L86: 0 | M86: 40
A87: Alok Khad Beej Bhandar - Rewari | B87: 9067917 | C87: WHIPSUPER (T) EC90 40X250ML BOT IN | D87: 5966131 | E87: 0 | F87: 0 | G87: 0 | H87: 0 | I87: 0 | J87: 0 | K87: 0 | L87: 0 | M87: 0
A88: Alok Khad Beej Bhandar - Rewari | B88: 9067917 | C88: SURPASS 7172 BG2 20X450GR BAG IN | D88: 84456071 | E88: 480 | F88: 400 | G88: 0 | H88: 600 | I88: 0 | J88: 0 | K88: 0 | L88: 0 | M88: 280
A89: Alok Khad Beej Bhandar - Rewari | B89: 9067917 | C89: NEWPRODUCT_9067917 | D89: 9067917 | E89: 128 | F89: 0 | G89: 0 | H89: 0 | I89: 0 | J89: 0 | K89: 0 | L89: 0 | M89: 128
A90: Alok Khad Beej Bhandar - Rewari | B90: 9067917 | C90: DECIS EC101-2 50X100ML BOX IN | D90: 6103692 | E90: 0 | F90: 0 | G90: 0 | H90: 0 | I90: 0 | J90: 0 | K90: 0 | L90: 0 | M90: 0
A91: Alok Khad Beej Bhandar - Rewari | B91: 9067917 | C91: MILLET PA 9180 (LOC) 20X1.50KG BAG IN | D91: 86706040 | E91: 0 | F91: 0 | G91: 0 | H91: 0 | I91: 0 | J91: 0 | K91: 0 | L91: 0 | M91: 0
A92: Alok Khad Beej Bhandar - Rewari | B92: 9067917 | C92: MUSTARD PA 5210 (LOC) 30X1KG BAG IN | D92: 86195089 | E92: 0 | F92: 0 | G92: 0 | H92: 0 | I92: 0 | J92: 0 | K92: 0 | L92: 0 | M92: 0
A93: Alok Khad Beej Bhandar - Rewari | B93: 9067917 | C93: MUSTARD PA 5232 (LOC) 30X1KG BAG IN | D93: 86735628 | E93: 0 | F93: 0 | G93: 0 | H93: 0 | I93: 0 | J93: 0 | K93: 0 | L93: 0 | M93: 0
A94: Alok Khad Beej Bhandar - Rewari | B94: 9067917 | C94: RAXIL EASY FS60 10X(20X13.4ML) BOT IN | D94: 84911186 | E94: 0 | F94: 0 | G94: 0 | H94: 0 | I94: 0 | J94: 0 | K94: 0 | L94: 0 | M94: 0
A95: Alok Khad Beej Bhandar - Rewari | B95: 9067917 | C95: SECTIN WG60 20X600GR BAG IN | D95: 6000664 | E95: 0 | F95: 0 | G95: 0 | H95: 0 | I95: 0 | J95: 0 | K95: 0 | L95: 0 | M95: 0
A96: Alok Khad Beej Bhandar - Rewari | B96: 9067917 | C96: BUONOS SC430 40X250ML BOT IN | D96: 86224801 | E96: 0 | F96: 0 | G96: 0 | H96: 5 | I96: 0 | J96: 0 | K96: 0 | L96: 0 | M96: -5
A97: Alok Khad Beej Bhandar - Rewari | B97: 9067917 | C97: BUONOS SC430 20X500ML BOT IN | D97: 86254468 | E97: 0 | F97: 0 | G97: 0 | H97: 2 | I97: 0 | J97: 0 | K97: 0 | L97: 0 | M97: -2
A98: GRANDTOTAL | E98: 2198 | F98: 7010 | G98: 0 | H98: 3153 | I98: 0 | J98: 0 | K98: 0 | L98: 0 | M98: 6055

Sheet OPG
A1: ADMIRE WG70 125X(8X2GR) BAG IN | B1: =VLOOKUP(A1,'[2]Product Master Sheet'!$B$2:$F$506,5,0) -> 16 | C1: 0
A2: ALIETTE WP80 20X250GR BAG IN | B2: =VLOOKUP(A2,'[2]Product Master Sheet'!$B$2:$F$506,5,0) -> 33 | C2: 0
A3: ALIETTE WP80 40X100GR BAG IN | B3: =VLOOKUP(A3,'[2]Product Master Sheet'!$B$2:$F$506,5,0) -> 35 | C3: 0
A4: AMBITION 10X1L BOT IN | B4: =VLOOKUP(A4,'[2]Product Master Sheet'!$B$2:$F$506,5,0) -> 39 | C4: 0
A5: AMBITION 40X250ML BOT IN | B5: =VLOOKUP(A5,'[2]Product Master Sheet'!$B$2:$F$506,5,0) -> 41 | C5: 0
A6: ANTRACOL (T) WP70 10X1KG BAG IN | B6: =VLOOKUP(A6,'[2]Product Master Sheet'!$B$2:$F$506,5,0) -> 42 | C6: 0
A7: ANTRACOL (T) WP70 20X500GR BAG IN | B7: =VLOOKUP(A7,'[2]Product Master Sheet'!$B$2:$F$506,5,0) -> 43 | C7: 0
A8: ANTRACOL (T) WP70 40X250GR BAG IN | B8: =VLOOKUP(A8,'[2]Product Master Sheet'!$B$2:$F$506,5,0) -> 44 | C8: 0
A9: ANTRACOL (T) WP70 50X100GR BAG IN | B9: =VLOOKUP(A9,'[2]Product Master Sheet'!$B$2:$F$506,5,0) -> 45 | C9: 0
A10: ATLANTIS KL3 6 15X160GR BOT IN | B10: =VLOOKUP(A10,'[2]Product Master Sheet'!$B$2:$F$506,5,0) -> 103 | C10: 0
A11: BELT EXPERT SC480 50X100ML BOT IN | B11: =VLOOKUP(A11,'[2]Product Master Sheet'!$B$2:$F$506,5,0) -> 111 | C11: 0
A12: CONFIDOR (T) SL200 10X1L BOT IN | B12: =VLOOKUP(A12,'[2]Product Master Sheet'!$B$2:$F$506,5,0) -> 113 | C12: 0
A13: CONFIDOR (T) SL200 20X250ML BOT IN | B13: =VLOOKUP(A13,'[2]Product Master Sheet'!$B$2:$F$506,5,0) -> 114 | C13: 0
A14: CONFIDOR (T) SL200 20X500ML BOT IN | B14: =VLOOKUP(A14,'[2]Product Master Sheet'!$B$2:$F$506,5,0) -> 115 | C14: 0
A15: CONFIDOR (T) SL200 50X100ML BOT IN | B15: =VLOOKUP(A15,'[2]Product Master Sheet'!$B$2:$F$506,5,0) -> 116 | C15: 0
A16: DECIS EC 28 20X500ML BOT IN | B16: =VLOOKUP(A16,'[2]Product Master Sheet'!$B$2:$F$506,5,0) -> 125 | C16: 0
A17: DECIS EC 28 40X250ML BOT IN | B17: =VLOOKUP(A17,'[2]Product Master Sheet'!$B$2:$F$506,5,0) -> 126 | C17: 0
A18: EMESTO PRIME FS240 50X100ML BOT IN | B18: =VLOOKUP(A18,'[2]Product Master Sheet'!$B$2:$F$506,5,0) -> 135 | C18: 0
A19: EVERGOL XTEND FS308 100X40ML BOT IN | B19: =VLOOKUP(A19,'[2]Product Master Sheet'!$B$2:$F$506,5,0) -> 139 | C19: 0
A20: EVERGOL XTEND FS308 50X100ML BOT IN | B20: =VLOOKUP(A20,'[2]Product Master Sheet'!$B$2:$F$506,5,0) -> 143 | C20: 0
A21: FAME (T) SC480 20X100ML BOT IN | B21: =VLOOKUP(A21,'[2]Product Master Sheet'!$B$2:$F$506,5,0) -> 145 | C21: 0
A22: FAME (T) SC480 40X50ML BOT IN | B22: =VLOOKUP(A22,'[2]Product Master Sheet'!$B$2:$F$506,5,0) -> 146 | C22: 0
A23: FENOS QUICK SC150 50X100ML BOT IN | B23: =VLOOKUP(A23,'[2]Product Master Sheet'!$B$2:$F$506,5,0) -> 152 | C23: 30
A24: FOLICUR (T) EC250 20X500ML BOT IN | B24: =VLOOKUP(A24,'[2]Product Master Sheet'!$B$2:$F$506,5,0) -> 163 | C24: 0
A25: FOLICUR (T) EC250 40X250ML BOT IN | B25: =VLOOKUP(A25,'[2]Product Master Sheet'!$B$2:$F$506,5,0) -> 164 | C25: 20
A26: FOLICUR (T) EC250 50X100ML BOT IN | B26: =VLOOKUP(A26,'[2]Product Master Sheet'!$B$2:$F$506,5,0) -> 165 | C26: 0
A27: FOOST WP50 24X500G BAG IN | B27: =VLOOKUP(A27,'[2]Product Master Sheet'!$B$2:$F$506,5,0) -> 177 | C27: 0
A28: GAUCHO FS600 2X(5X1L) BOT IN | B28: =VLOOKUP(A28,'[2]Product Master Sheet'!$B$2:$F$506,5,0) -> 178 | C28: 0
A29: GAUCHO FS600 100X50ML BOT IN | B29: =VLOOKUP(A29,'[2]Product Master Sheet'!$B$2:$F$506,5,0) -> 179 | C29: 0
A30: GAUCHO FS600 2X5L BOT IN | B30: =VLOOKUP(A30,'[2]Product Master Sheet'!$B$2:$F$506,5,0) -> 180 | C30: 0
A31: GAUCHO FS600 5X(20X9)ML BOT IN | B31: =VLOOKUP(A31,'[2]Product Master Sheet'!$B$2:$F$506,5,0) -> 183 | C31: 0
A32: JUMP WG80 160X(10X2GR) BAG IN | B32: =VLOOKUP(A32,'[2]Product Master Sheet'!$B$2:$F$506,5,0) -> 199 | C32: 0
A33: LARVIN (T) WP75 20X250GR BAG IN | B33: =VLOOKUP(A33,'[2]Product Master Sheet'!$B$2:$F$506,5,0) -> 205 | C33: 60
A34: LAUDIS SC630 10X57.5ML BOT IN | B34: =VLOOKUP(A34,'[2]Product Master Sheet'!$B$2:$F$506,5,0) -> 210 | C34: 0
A35: LAUDIS SC630 8X115ML BOT IN | B35: =VLOOKUP(A35,'[2]Product Master Sheet'!$B$2:$F$506,5,0) -> 212 | C35: 0
A36: LESENTA WG80 20X250GR BAG IN | B36: =VLOOKUP(A36,'[2]Product Master Sheet'!$B$2:$F$506,5,0) -> 217 | C36: 0
A37: LESENTA WG80 50X100GR BAG IN | B37: =VLOOKUP(A37,'[2]Product Master Sheet'!$B$2:$F$506,5,0) -> 219 | C37: 0
A38: LUNA EXPERIENCE SC400 40X250ML BOT IN | B38: =VLOOKUP(A38,'[2]Product Master Sheet'!$B$2:$F$506,5,0) -> 225 | C38: 0
A39: LUNA EXPERIENCE SC400 50X100ML BOT IN | B39: =VLOOKUP(A39,'[2]Product Master Sheet'!$B$2:$F$506,5,0) -> 226 | C39: 0
A40: MELODY DUO WP66 8 10X400GR BAG IN | B40: =VLOOKUP(A40,'[2]Product Master Sheet'!$B$2:$F$506,5,0) -> 228 | C40: 10
A41: MILLET HYBRID 9001 20X1.5 BAG IN | B41: =VLOOKUP(A41,'[2]Product Master Sheet'!$B$2:$F$506,5,0) -> 236 | C41: 0
A42: MILLET HYBRID 9444 20X1.5KG BAG IN | B42: =VLOOKUP(A42,'[2]Product Master Sheet'!$B$2:$F$506,5,0) -> 243 | C42: 0
A43: MILLET HYBRID 9450 20X1 5KG BAG IN | B43: =VLOOKUP(A43,'[2]Product Master Sheet'!$B$2:$F$506,5,0) -> 251 | C43: 0
A44: MOVENTO ENERGY SC240 10X1L BOT IN | B44: =VLOOKUP(A44,'[2]Product Master Sheet'!$B$2:$F$506,5,0) -> 271 | C44: 0
A45: MOVENTO ENERGY SC240 40X250ML BOT IN | B45: =VLOOKUP(A45,'[2]Product Master Sheet'!$B$2:$F$506,5,0) -> 273 | C45: 80
A46: MOVENTO ENERGY SC240 50X100ML BOT IN | B46: =VLOOKUP(A46,'[2]Product Master Sheet'!$B$2:$F$506,5,0) -> 274 | C46: 0
A47: MUSTARD 5222 30X1KG BAG IN | B47: =VLOOKUP(A47,'[2]Product Master Sheet'!$B$2:$F$506,5,0) -> 278 | C47: 0
A48: MUSTARD 5222 60X500G BAG IN | B48: =VLOOKUP(A48,'[2]Product Master Sheet'!$B$2:$F$506,5,0) -> 279 | C48: 0
A49: NATIVO WG75 100X50GR BAG IN | B49: =VLOOKUP(A49,'[2]Product Master Sheet'!$B$2:$F$506,5,0) -> 289 | C49: 0
A50: NATIVO WG75 10X1KG BAG IN | B50: =VLOOKUP(A50,'[2]Product Master Sheet'!$B$2:$F$506,5,0) -> 290 | C50: 0
A51: NATIVO WG75 20X500GR BAG IN | B51: =VLOOKUP(A51,'[2]Product Master Sheet'!$B$2:$F$506,5,0) -> 292 | C51: 0
A52: NATIVO WG75 40X250GR BAG IN | B52: =VLOOKUP(A52,'[2]Product Master Sheet'!$B$2:$F$506,5,0) -> 293 | C52: 0
A53: NATIVO WG75 50X100GR BAG IN | B53: =VLOOKUP(A53,'[2]Product Master Sheet'!$B$2:$F$506,5,0) -> 294 | C53: 0
A54: OBERON (T) SC240 20X500ML BOT IN | B54: =VLOOKUP(A54,'[2]Product Master Sheet'!$B$2:$F$506,5,0) -> 297 | C54: 0
A55: OBERON (T) SC240 40X200ML BOT IN | B55: =VLOOKUP(A55,'[2]Product Master Sheet'!$B$2:$F$506,5,0) -> 299 | C55: 40
A56: OBERON (T) SC240 50X100ML BOT IN | B56: =VLOOKUP(A56,'[2]Product Master Sheet'!$B$2:$F$506,5,0) -> 300 | C56: 0
A57: PLANOFIX SL4 5 40X250ML BOT IN | B57: =VLOOKUP(A57,'[2]Product Master Sheet'!$B$2:$F$506,5,0) -> 306 | C57: 0
A58: PLANOFIX SL4 5 50X100ML BOT IN | B58: =VLOOKUP(A58,'[2]Product Master Sheet'!$B$2:$F$506,5,0) -> 307 | C58: 0
A59: RAXIL EASY FS60 10X1L BOT IN | B59: =VLOOKUP(A59,'[2]Product Master Sheet'!$B$2:$F$506,5,0) -> 321 | C59: 0
A60: REGENT (T) SC50 20X250ML BOT IN | B60: =VLOOKUP(A60,'[2]Product Master Sheet'!$B$2:$F$506,5,0) -> 325 | C60: 0
A61: REGENT (T) SC50 20X500ML BOT IN | B61: =VLOOKUP(A61,'[2]Product Master Sheet'!$B$2:$F$506,5,0) -> 326 | C61: 0
A62: REGENT (T) SC50 50X100ML BOT IN | B62: =VLOOKUP(A62,'[2]Product Master Sheet'!$B$2:$F$506,5,0) -> 327 | C62: 0
A63: REGENT GOLD SC200 40X250ML BOT IN | B63: =VLOOKUP(A63,'[2]Product Master Sheet'!$B$2:$F$506,5,0) -> 331 | C63: 0
A64: REGENT GOLD SC200 50X100ML BOT IN | B64: =VLOOKUP(A64,'[2]Product Master Sheet'!$B$2:$F$506,5,0) -> 332 | C64: 0
A65: REGENT GR0 3 1X25KG BOX WW | B65: =VLOOKUP(A65,'[2]Product Master Sheet'!$B$2:$F$506,5,0) -> 333 | C65: 0
A66: REGENT GR0 3 20X1KG BAG IN | B66: =VLOOKUP(A66,'[2]Product Master Sheet'!$B$2:$F$506,5,0) -> 335 | C66: 1000
A67: REGENT ULTRA GR0 6 5X4KG BAG IN | B67: =VLOOKUP(A67,'[2]Product Master Sheet'!$B$2:$F$506,5,0) -> 339 | C67: 0
A68: SECTIN WG60 10X1KG BAG IN | B68: =VLOOKUP(A68,'[2]Product Master Sheet'!$B$2:$F$506,5,0) -> 344 | C68: 0
A69: SENCOR WP70 60X100GR BAG IN | B69: =VLOOKUP(A69,'[2]Product Master Sheet'!$B$2:$F$506,5,0) -> 353 | C69: 0
A70: SIMBOLA (T) SG20 20X250G BOT IN | B70: =VLOOKUP(A70,'[2]Product Master Sheet'!$B$2:$F$506,5,0) -> 356 | C70: 0
A71: SOLOMON OD300 10X1L BOT IN | B71: =VLOOKUP(A71,'[2]Product Master Sheet'!$B$2:$F$506,5,0) -> 365 | C71: 0
A72: SOLOMON OD300 20X500ML BOT IN | B72: =VLOOKUP(A72,'[2]Product Master Sheet'!$B$2:$F$506,5,0) -> 366 | C72: 0
A73: SOLOMON OD300 40X250ML BOT IN | B73: =VLOOKUP(A73,'[2]Product Master Sheet'!$B$2:$F$506,5,0) -> 368 | C73: 80
A74: SOLOMON OD300 50X100ML BOT IN | B74: =VLOOKUP(A74,'[2]Product Master Sheet'!$B$2:$F$506,5,0) -> 370 | C74: 50
A75: SUNRICE WG15 100X50GR BOT IN | B75: =VLOOKUP(A75,'[2]Product Master Sheet'!$B$2:$F$506,5,0) -> 374 | C75: 0
A76: SURPASS 7272 BG2 (LOC) 20X450G BAG IN | B76: =VLOOKUP(A76,'[2]Product Master Sheet'!$B$2:$F$506,5,0) -> 383 | C76: 160
A77: VELUM PRIME SC400 20X500ML BOT IN | B77: =VLOOKUP(A77,'[2]Product Master Sheet'!$B$2:$F$506,5,0) -> 400 | C77: 20
A78: VELUM PRIME SC400 40X250ML BOT IN | B78: =VLOOKUP(A78,'[2]Product Master Sheet'!$B$2:$F$506,5,0) -> 401 | C78: 40
A79: WHIPSUPER (T) EC90 40X250ML BOT IN | B79: =VLOOKUP(A79,'[2]Product Master Sheet'!$B$2:$F$506,5,0) -> 405 | C79: 0
A80: SURPASS 7172 BG2 20X450GR BAG IN | B80: =VLOOKUP(A80,'[2]Product Master Sheet'!$B$2:$F$506,5,0) -> 382 | C80: 480
A81: DECIS EC101-2 50X100ML BOX IN | B81: =VLOOKUP(A81,'[2]Product Master Sheet'!$B$2:$F$506,5,0) -> 924 | C81: 0
A82: MILLET PA 9180 (LOC) 20X1.50KG BAG IN | B82: =VLOOKUP(A82,'[2]Product Master Sheet'!$B$2:$F$506,5,0) -> 915 | C82: 0
A83: MUSTARD PA 5210 (LOC) 30X1KG BAG IN | B83: =VLOOKUP(A83,'[2]Product Master Sheet'!$B$2:$F$506,5,0) -> 911 | C83: 0
A84: MUSTARD PA 5232 (LOC) 30X1KG BAG IN | B84: =VLOOKUP(A84,'[2]Product Master Sheet'!$B$2:$F$506,5,0) -> 913 | C84: 0
A85: RAXIL EASY FS60 10X(20X13.4ML) BOT IN | B85: =VLOOKUP(A85,'[2]Product Master Sheet'!$B$2:$F$506,5,0) -> 320 | C85: 0
A86: SECTIN WG60 20X600GR BAG IN | B86: =VLOOKUP(A86,'[2]Product Master Sheet'!$B$2:$F$506,5,0) -> 345 | C86: 0
A87: BUONOS SC430 40X250ML BOT IN | B87: =VLOOKUP(A87,'[2]Product Master Sheet'!$B$2:$F$506,5,0) -> 1397 | C87: 0
A88: BUONOS SC430 20X500ML BOT IN | B88: =VLOOKUP(A88,'[2]Product Master Sheet'!$B$2:$F$506,5,0) -> 1396 | C88: 0
A89: ADUE WG70 15X40G BOT IN | B89: =VLOOKUP(A89,'[2]Product Master Sheet'!$B$2:$F$506,5,0) -> 24 | C89: 0
A90: ALANTO (T) SC240 40X250ML BOT IN | B90: =VLOOKUP(A90,'[2]Product Master Sheet'!$B$2:$F$506,5,0) -> 29 | C90: 0
A91: ALANTO (T) SC240 50X100ML BOT IN | B91: =VLOOKUP(A91,'[2]Product Master Sheet'!$B$2:$F$506,5,0) -> 30 | C91: 0
A92: CONFIDOR (T) SL200 100X50ML BOT IN | B92: =VLOOKUP(A92,'[2]Product Master Sheet'!$B$2:$F$506,5,0) -> 112 | C92: 0
A93: CONFIDOR SUPER (T) SC350 50X100ML BOT IN | B93: =VLOOKUP(A93,'[2]Product Master Sheet'!$B$2:$F$506,5,0) -> 120 | C93: 0
A94: CONFIDOR SUPER (T) SC350 50X50ML BOT IN | B94: =VLOOKUP(A94,'[2]Product Master Sheet'!$B$2:$F$506,5,0) -> 121 | C94: 0
A95: DECIS EC 28 10X1L BOT IN | B95: =VLOOKUP(A95,'[2]Product Master Sheet'!$B$2:$F$506,5,0) -> 124 | C95: 0
A96: DISCOUNTINUE PRODUCT | B96: =VLOOKUP(A96,'[2]Product Master Sheet'!$B$2:$F$506,5,0) -> 993 | C96: 0
A97: INFINITO SC687 5 20X500ML BOT IN | B97: =VLOOKUP(A97,'[2]Product Master Sheet'!$B$2:$F$506,5,0) -> 195 | C97: 0
A98: LUCIFER (T) WP15 25X160GR BAG IN | B98: =VLOOKUP(A98,'[2]Product Master Sheet'!$B$2:$F$506,5,0) -> 221 | C98: 0
A99: MILLET 9001 (LOC) 6X4.5KG BAG IN | B99: =VLOOKUP(A99,'[2]Product Master Sheet'!$B$2:$F$506,5,0) -> 918 | C99: 0
A100: MILLET HYBRID 9444 GOLD 20X1.50KG BAG IN | B100: =VLOOKUP(A100,'[2]Product Master Sheet'!$B$2:$F$506,5,0) -> 248 | C100: 0
A101: MILLET HYBRID PA9072 20X1.5KG BAG IN | B101: =VLOOKUP(A101,'[2]Product Master Sheet'!$B$2:$F$506,5,0) -> 260 | C101: 0
A102: REGENT (T) SC50 10X1L BOT IN | B102: =VLOOKUP(A102,'[2]Product Master Sheet'!$B$2:$F$506,5,0) -> 324 | C102: 0
A103: SECTIN WG60 50X100GR BAG IN | B103: =VLOOKUP(A103,'[2]Product Master Sheet'!$B$2:$F$506,5,0) -> 346 | C103: 0
A104: SPINTOR SC495 20X75ML BOT IN | B104: =VLOOKUP(A104,'[2]Product Master Sheet'!$B$2:$F$506,5,0) -> 373 | C104: 0

Sheet Reco
B1: Zylem Report -01-Apr-2021 TO 30-Apr-2021 | K1: Dealer Report -01-Apr-2021 TO 30-Apr-2021 | T1: Difference (+/-)
A3: DEALER CODE | B3: Opening Qty | C3: Purchase Qty | D3: Purchase Return Qty | E3: Sales Qty | F3: Sales Return Qty | G3: Transfer Qty | H3: Consignment Qty | I3: Adjustment Qty | J3: CLSG | K3: Opening Qty | L3: Purchase Qty | M3: Purchase Return Qty | N3: Sales Qty | O3: Sales Return Qty | P3: Transfer Qty | Q3: Consignment Qty | R3: Adjustment Qty | S3: CLSG | T3: Opening Stock Qty | U3: Purchase Qty | V3: Purchase Return Qty | W3: Sales Qty | X3: Sales Return Qty | Y3: Transfer Qty | Z3: Consignment Qty | AA3: Adjustments Qty | AB3: CLSG | AC3: Remark
A4: ADMIRE WG70 125X(8X2GR) BAG IN | B4: 0 | C4: 2000 | D4: 0 | E4: 1040 | F4: 0 | G4: 0 | H4: 0 | I4: 0 | J4: 960 | K4: 0 | L4: 2000 | M4: 0 | N4: 1040 | O4: 0 | P4: 0 | Q4: 0 | R4: 0 | S4: 960 | T4: 0 | U4: 0 | V4: 0 | W4: 0 | X4: 0 | Y4: 0 | Z4: 0 | AA4: 0 | AB4: 0 | AC4: Ok
A5: ALIETTE WP80 20X250GR BAG IN | B5: 0 | C5: 0 | D5: 0 | E5: 0 | F5: 0 | G5: 0 | H5: 0 | I5: 0 | J5: 0 | K5: 0 | L5: 0 | M5: 0 | N5: 0 | O5: 0 | P5: 0 | Q5: 0 | R5: 0 | S5: 0 | T5: 0 | U5: 0 | V5: 0 | W5: 0 | X5: 0 | Y5: 0 | Z5: 0 | AA5: 0 | AB5: 0 | AC5: Ok
A6: ALIETTE WP80 40X100GR BAG IN | B6: 0 | C6: 0 | D6: 0 | E6: 0 | F6: 0 | G6: 0 | H6: 0 | I6: 0 | J6: 0 | K6: 0 | L6: 0 | M6: 0 | N6: 0 | O6: 0 | P6: 0 | Q6: 0 | R6: 0 | S6: 0 | T6: 0 | U6: 0 | V6: 0 | W6: 0 | X6: 0 | Y6: 0 | Z6: 0 | AA6: 0 | AB6: 0 | AC6: Ok
A7: AMBITION 10X1L BOT IN | B7: 0 | C7: 0 | D7: 0 | E7: 0 | F7: 0 | G7: 0 | H7: 0 | I7: 0 | J7: 0 | K7: 0 | L7: 0 | M7: 0 | N7: 0 | O7: 0 | P7: 0 | Q7: 0 | R7: 0 | S7: 0 | T7: 0 | U7: 0 | V7: 0 | W7: 0 | X7: 0 | Y7: 0 | Z7: 0 | AA7: 0 | AB7: 0 | AC7: Ok
A8: AMBITION 40X250ML BOT IN | B8: 0 | C8: 0 | D8: 0 | E8: 0 | F8: 0 | G8: 0 | H8: 0 | I8: 0 | J8: 0 | K8: 0 | L8: 0 | M8: 0 | N8: 0 | O8: 0 | P8: 0 | Q8: 0 | R8: 0 | S8: 0 | T8: 0 | U8: 0 | V8: 0 | W8: 0 | X8: 0 | Y8: 0 | Z8: 0 | AA8: 0 | AB8: 0 | AC8: Ok
A9: ANTRACOL (T) WP70 10X1KG BAG IN | B9: 0 | C9: 30 | D9: 0 | E9: 0 | F9: 0 | G9: 0 | H9: 0 | I9: 0 | J9: 30 | K9: 0 | L9: 30 | M9: 0 | N9: 0 | O9: 0 | P9: 0 | Q9: 0 | R9: 0 | S9: 30 | T9: 0 | U9: 0 | V9: 0 | W9: 0 | X9: 0 | Y9: 0 | Z9: 0 | AA9: 0 | AB9: 0 | AC9: Ok
A10: ANTRACOL (T) WP70 20X500GR BAG IN | B10: 0 | C10: 60 | D10: 0 | E10: 5 | F10: 0 | G10: 0 | H10: 0 | I10: 0 | J10: 55 | K10: 0 | L10: 60 | M10: 0 | N10: 5 | O10: 0 | P10: 0 | Q10: 0 | R10: 0 | S10: 55 | T10: 0 | U10: 0 | V10: 0 | W10: 0 | X10: 0 | Y10: 0 | Z10: 0 | AA10: 0 | AB10: 0 | AC10: Ok
A11: ANTRACOL (T) WP70 40X250GR BAG IN | B11: 0 | C11: 120 | D11: 0 | E11: 0 | F11: 0 | G11: 0 | H11: 0 | I11: 0 | J11: 120 | K11: 0 | L11: 120 | M11: 0 | N11: 0 | O11: 0 | P11: 0 | Q11: 0 | R11: 0 | S11: 120 | T11: 0 | U11: 0 | V11: 0 | W11: 0 | X11: 0 | Y11: 0 | Z11: 0 | AA11: 0 | AB11: 0 | AC11: Ok
A12: ANTRACOL (T) WP70 50X100GR BAG IN | B12: 0 | C12: 0 | D12: 0 | E12: 0 | F12: 0 | G12: 0 | H12: 0 | I12: 0 | J12: 0 | K12: 0 | L12: 0 | M12: 0 | N12: 0 | O12: 0 | P12: 0 | Q12: 0 | R12: 0 | S12: 0 | T12: 0 | U12: 0 | V12: 0 | W12: 0 | X12: 0 | Y12: 0 | Z12: 0 | AA12: 0 | AB12: 0 | AC12: Ok
A13: ATLANTIS KL3 6 15X160GR BOT IN | B13: 0 | C13: 0 | D13: 0 | E13: 0 | F13: 0 | G13: 0 | H13: 0 | I13: 0 | J13: 0 | K13: 0 | L13: 0 | M13: 0 | N13: 0 | O13: 0 | P13: 0 | Q13: 0 | R13: 0 | S13: 0 | T13: 0 | U13: 0 | V13: 0 | W13: 0 | X13: 0 | Y13: 0 | Z13: 0 | AA13: 0 | AB13: 0 | AC13: Ok
A14: BELT EXPERT SC480 50X100ML BOT IN | B14: 0 | C14: 150 | D14: 0 | E14: 30 | F14: 0 | G14: 0 | H14: 0 | I14: 0 | J14: 120 | K14: 0 | L14: 150 | M14: 0 | N14: 30 | O14: 0 | P14: 0 | Q14: 0 | R14: 0 | S14: 120 | T14: 0 | U14: 0 | V14: 0 | W14: 0 | X14: 0 | Y14: 0 | Z14: 0 | AA14: 0 | AB14: 0 | AC14: Ok
A15: CONFIDOR (T) SL200 10X1L BOT IN | B15: 0 | C15: 0 | D15: 0 | E15: 0 | F15: 0 | G15: 0 | H15: 0 | I15: 0 | J15: 0 | K15: 0 | L15: 0 | M15: 0 | N15: 0 | O15: 0 | P15: 0 | Q15: 0 | R15: 0 | S15: 0 | T15: 0 | U15: 0 | V15: 0 | W15: 0 | X15: 0 | Y15: 0 | Z15: 0 | AA15: 0 | AB15: 0 | AC15: Ok
A16: CONFIDOR (T) SL200 20X250ML BOT IN | B16: 0 | C16: 40 | D16: 0 | E16: 0 | F16: 0 | G16: 0 | H16: 0 | I16: 0 | J16: 40 | K16: 0 | L16: 40 | M16: 0 | N16: 0 | O16: 0 | P16: 0 | Q16: 0 | R16: 0 | S16: 40 | T16: 0 | U16: 0 | V16: 0 | W16: 0 | X16: 0 | Y16: 0 | Z16: 0 | AA16: 0 | AB16: 0 | AC16: Ok
A17: CONFIDOR (T) SL200 20X500ML BOT IN | B17: 0 | C17: 40 | D17: 0 | E17: 0 | F17: 0 | G17: 0 | H17: 0 | I17: 0 | J17: 40 | K17: 0 | L17: 40 | M17: 0 | N17: 0 | O17: 0 | P17: 0 | Q17: 0 | R17: 0 | S17: 40 | T17: 0 | U17: 0 | V17: 0 | W17: 0 | X17: 0 | Y17: 0 | Z17: 0 | AA17: 0 | AB17: 0 | AC17: Ok
A18: CONFIDOR (T) SL200 50X100ML BOT IN | B18: 0 | C18: 100 | D18: 0 | E18: 0 | F18: 0 | G18: 0 | H18: 0 | I18: 0 | J18: 100 | K18: 0 | L18: 100 | M18: 0 | N18: 0 | O18: 0 | P18: 0 | Q18: 0 | R18: 0 | S18: 100 | T18: 0 | U18: 0 | V18: 0 | W18: 0 | X18: 0 | Y18: 0 | Z18: 0 | AA18: 0 | AB18: 0 | AC18: Ok
A19: DECIS EC 28 20X500ML BOT IN | B19: 0 | C19: 0 | D19: 0 | E19: 0 | F19: 0 | G19: 0 | H19: 0 | I19: 0 | J19: 0 | K19: 0 | L19: 0 | M19: 0 | N19: 0 | O19: 0 | P19: 0 | Q19: 0 | R19: 0 | S19: 0 | T19: 0 | U19: 0 | V19: 0 | W19: 0 | X19: 0 | Y19: 0 | Z19: 0 | AA19: 0 | AB19: 0 | AC19: Ok
A20: DECIS EC 28 40X250ML BOT IN | B20: 0 | C20: 0 | D20: 0 | E20: 0 | F20: 0 | G20: 0 | H20: 0 | I20: 0 | J20: 0 | K20: 0 | L20: 0 | M20: 0 | N20: 0 | O20: 0 | P20: 0 | Q20: 0 | R20: 0 | S20: 0 | T20: 0 | U20: 0 | V20: 0 | W20: 0 | X20: 0 | Y20: 0 | Z20: 0 | AA20: 0 | AB20: 0 | AC20: Ok
A21: EMESTO PRIME FS240 50X100ML BOT IN | B21: 0 | C21: 0 | D21: 0 | E21: 0 | F21: 0 | G21: 0 | H21: 0 | I21: 0 | J21: 0 | K21: 0 | L21: 0 | M21: 0 | N21: 0 | O21: 0 | P21: 0 | Q21: 0 | R21: 0 | S21: 0 | T21: 0 | U21: 0 | V21: 0 | W21: 0 | X21: 0 | Y21: 0 | Z21: 0 | AA21: 0 | AB21: 0 | AC21: Ok
A22: EVERGOL XTEND FS308 100X40ML BOT IN | B22: 0 | C22: 0 | D22: 0 | E22: 0 | F22: 0 | G22: 0 | H22: 0 | I22: 0 | J22: 0 | K22: 0 | L22: 0 | M22: 0 | N22: 0 | O22: 0 | P22: 0 | Q22: 0 | R22: 0 | S22: 0 | T22: 0 | U22: 0 | V22: 0 | W22: 0 | X22: 0 | Y22: 0 | Z22: 0 | AA22: 0 | AB22: 0 | AC22: Ok
A23: EVERGOL XTEND FS308 50X100ML BOT IN | B23: 0 | C23: 0 | D23: 0 | E23: 0 | F23: 0 | G23: 0 | H23: 0 | I23: 0 | J23: 0 | K23: 0 | L23: 0 | M23: 0 | N23: 0 | O23: 0 | P23: 0 | Q23: 0 | R23: 0 | S23: 0 | T23: 0 | U23: 0 | V23: 0 | W23: 0 | X23: 0 | Y23: 0 | Z23: 0 | AA23: 0 | AB23: 0 | AC23: Ok
A24: FAME (T) SC480 20X100ML BOT IN | B24: 0 | C24: 0 | D24: 0 | E24: 0 | F24: 0 | G24: 0 | H24: 0 | I24: 0 | J24: 0 | K24: 0 | L24: 0 | M24: 0 | N24: 0 | O24: 0 | P24: 0 | Q24: 0 | R24: 0 | S24: 0 | T24: 0 | U24: 0 | V24: 0 | W24: 0 | X24: 0 | Y24: 0 | Z24: 0 | AA24: 0 | AB24: 0 | AC24: Ok
A25: FAME (T) SC480 40X50ML BOT IN | B25: 0 | C25: 40 | D25: 0 | E25: 0 | F25: 0 | G25: 0 | H25: 0 | I25: 0 | J25: 40 | K25: 0 | L25: 40 | M25: 0 | N25: 0 | O25: 0 | P25: 0 | Q25: 0 | R25: 0 | S25: 40 | T25: 0 | U25: 0 | V25: 0 | W25: 0 | X25: 0 | Y25: 0 | Z25: 0 | AA25: 0 | AB25: 0 | AC25: Ok
A26: FENOS QUICK SC150 50X100ML BOT IN | B26: 30 | C26: 0 | D26: 0 | E26: 5 | F26: 0 | G26: 0 | H26: 0 | I26: 0 | J26: 25 | K26: 30 | L26: 0 | M26: 0 | N26: 5 | O26: 0 | P26: 0 | Q26: 0 | R26: 0 | S26: 25 | T26: 0 | U26: 0 | V26: 0 | W26: 0 | X26: 0 | Y26: 0 | Z26: 0 | AA26: 0 | AB26: 0 | AC26: Ok
A27: FOLICUR (T) EC250 20X500ML BOT IN | B27: 0 | C27: 20 | D27: 0 | E27: 0 | F27: 0 | G27: 0 | H27: 0 | I27: 0 | J27: 20 | K27: 0 | L27: 20 | M27: 0 | N27: 0 | O27: 0 | P27: 0 | Q27: 0 | R27: 0 | S27: 20 | T27: 0 | U27: 0 | V27: 0 | W27: 0 | X27: 0 | Y27: 0 | Z27: 0 | AA27: 0 | AB27: 0 | AC27: Ok
A28: FOLICUR (T) EC250 40X250ML BOT IN | B28: 20 | C28: 40 | D28: 0 | E28: 42 | F28: 0 | G28: 0 | H28: 0 | I28: 0 | J28: 18 | K28: 20 | L28: 40 | M28: 0 | N28: 42 | O28: 0 | P28: 0 | Q28: 0 | R28: 0 | S28: 18 | T28: 0 | U28: 0 | V28: 0 | W28: 0 | X28: 0 | Y28: 0 | Z28: 0 | AA28: 0 | AB28: 0 | AC28: Ok
A29: FOLICUR (T) EC250 50X100ML BOT IN | B29: 0 | C29: 0 | D29: 0 | E29: 0 | F29: 0 | G29: 0 | H29: 0 | I29: 0 | J29: 0 | K29: 0 | L29: 0 | M29: 0 | N29: 0 | O29: 0 | P29: 0 | Q29: 0 | R29: 0 | S29: 0 | T29: 0 | U29: 0 | V29: 0 | W29: 0 | X29: 0 | Y29: 0 | Z29: 0 | AA29: 0 | AB29: 0 | AC29: Ok
A30: FOOST WP50 24X500G BAG IN | B30: 0 | C30: 0 | D30: 0 | E30: 0 | F30: 0 | G30: 0 | H30: 0 | I30: 0 | J30: 0 | K30: 0 | L30: 0 | M30: 0 | N30: 0 | O30: 0 | P30: 0 | Q30: 0 | R30: 0 | S30: 0 | T30: 0 | U30: 0 | V30: 0 | W30: 0 | X30: 0 | Y30: 0 | Z30: 0 | AA30: 0 | AB30: 0 | AC30: Ok
A31: GAUCHO FS600 2X(5X1L) BOT IN | B31: 0 | C31: 0 | D31: 0 | E31: 0 | F31: 0 | G31: 0 | H31: 0 | I31: 0 | J31: 0 | K31: 0 | L31: 0 | M31: 0 | N31: 0 | O31: 0 | P31: 0 | Q31: 0 | R31: 0 | S31: 0 | T31: 0 | U31: 0 | V31: 0 | W31: 0 | X31: 0 | Y31: 0 | Z31: 0 | AA31: 0 | AB31: 0 | AC31: Ok
A32: GAUCHO FS600 100X50ML BOT IN | B32: 0 | C32: 0 | D32: 0 | E32: 0 | F32: 0 | G32: 0 | H32: 0 | I32: 0 | J32: 0 | K32: 0 | L32: 0 | M32: 0 | N32: 0 | O32: 0 | P32: 0 | Q32: 0 | R32: 0 | S32: 0 | T32: 0 | U32: 0 | V32: 0 | W32: 0 | X32: 0 | Y32: 0 | Z32: 0 | AA32: 0 | AB32: 0 | AC32: Ok
A33: GAUCHO FS600 2X5L BOT IN | B33: 0 | C33: 0 | D33: 0 | E33: 0 | F33: 0 | G33: 0 | H33: 0 | I33: 0 | J33: 0 | K33: 0 | L33: 0 | M33: 0 | N33: 0 | O33: 0 | P33: 0 | Q33: 0 | R33: 0 | S33: 0 | T33: 0 | U33: 0 | V33: 0 | W33: 0 | X33: 0 | Y33: 0 | Z33: 0 | AA33: 0 | AB33: 0 | AC33: Ok
A34: GAUCHO FS600 5X(20X9)ML BOT IN | B34: 0 | C34: 0 | D34: 0 | E34: 0 | F34: 0 | G34: 0 | H34: 0 | I34: 0 | J34: 0 | K34: 0 | L34: 0 | M34: 0 | N34: 0 | O34: 0 | P34: 0 | Q34: 0 | R34: 0 | S34: 0 | T34: 0 | U34: 0 | V34: 0 | W34: 0 | X34: 0 | Y34: 0 | Z34: 0 | AA34: 0 | AB34: 0 | AC34: Ok
A35: JUMP WG80 160X(10X2GR) BAG IN | B35: 0 | C35: 3200 | D35: 0 | E35: 110 | F35: 0 | G35: 0 | H35: 0 | I35: 0 | J35: 3090 | K35: 0 | L35: 3200 | M35: 0 | N35: 110 | O35: 0 | P35: 0 | Q35: 0 | R35: 0 | S35: 3090 | T35: 0 | U35: 0 | V35: 0 | W35: 0 | X35: 0 | Y35: 0 | Z35: 0 | AA35: 0 | AB35: 0 | AC35: Ok
A36: LARVIN (T) WP75 20X250GR BAG IN | B36: 60 | C36: 0 | D36: 0 | E36: 20 | F36: 0 | G36: 0 | H36: 0 | I36: 0 | J36: 40 | K36: 60 | L36: 0 | M36: 0 | N36: 20 | O36: 0 | P36: 0 | Q36: 0 | R36: 0 | S36: 40 | T36: 0 | U36: 0 | V36: 0 | W36: 0 | X36: 0 | Y36: 0 | Z36: 0 | AA36: 0 | AB36: 0 | AC36: Ok
A37: LAUDIS SC630 10X57.5ML BOT IN | B37: 0 | C37: 0 | D37: 0 | E37: 0 | F37: 0 | G37: 0 | H37: 0 | I37: 0 | J37: 0 | K37: 0 | L37: 0 | M37: 0 | N37: 0 | O37: 0 | P37: 0 | Q37: 0 | R37: 0 | S37: 0 | T37: 0 | U37: 0 | V37: 0 | W37: 0 | X37: 0 | Y37: 0 | Z37: 0 | AA37: 0 | AB37: 0 | AC37: Ok
A38: LAUDIS SC630 8X115ML BOT IN | B38: 0 | C38: 0 | D38: 0 | E38: 0 | F38: 0 | G38: 0 | H38: 0 | I38: 0 | J38: 0 | K38: 0 | L38: 0 | M38: 0 | N38: 0 | O38: 0 | P38: 0 | Q38: 0 | R38: 0 | S38: 0 | T38: 0 | U38: 0 | V38: 0 | W38: 0 | X38: 0 | Y38: 0 | Z38: 0 | AA38: 0 | AB38: 0 | AC38: Ok
A39: LESENTA WG80 20X250GR BAG IN | B39: 0 | C39: 0 | D39: 0 | E39: 0 | F39: 0 | G39: 0 | H39: 0 | I39: 0 | J39: 0 | K39: 0 | L39: 0 | M39: 0 | N39: 0 | O39: 0 | P39: 0 | Q39: 0 | R39: 0 | S39: 0 | T39: 0 | U39: 0 | V39: 0 | W39: 0 | X39: 0 | Y39: 0 | Z39: 0 | AA39: 0 | AB39: 0 | AC39: Ok
A40: LESENTA WG80 50X100GR BAG IN | B40: 0 | C40: 0 | D40: 0 | E40: 0 | F40: 0 | G40: 0 | H40: 0 | I40: 0 | J40: 0 | K40: 0 | L40: 0 | M40: 0 | N40: 0 | O40: 0 | P40: 0 | Q40: 0 | R40: 0 | S40: 0 | T40: 0 | U40: 0 | V40: 0 | W40: 0 | X40: 0 | Y40: 0 | Z40: 0 | AA40: 0 | AB40: 0 | AC40: Ok
A41: LUNA EXPERIENCE SC400 40X250ML BOT IN | B41: 0 | C41: 80 | D41: 0 | E41: 0 | F41: 0 | G41: 0 | H41: 0 | I41: 0 | J41: 80 | K41: 0 | L41: 80 | M41: 0 | N41: 0 | O41: 0 | P41: 0 | Q41: 0 | R41: 0 | S41: 80 | T41: 0 | U41: 0 | V41: 0 | W41: 0 | X41: 0 | Y41: 0 | Z41: 0 | AA41: 0 | AB41: 0 | AC41: Ok
A42: LUNA EXPERIENCE SC400 50X100ML BOT IN | B42: 0 | C42: 50 | D42: 0 | E42: 0 | F42: 0 | G42: 0 | H42: 0 | I42: 0 | J42: 50 | K42: 0 | L42: 50 | M42: 0 | N42: 0 | O42: 0 | P42: 0 | Q42: 0 | R42: 0 | S42: 50 | T42: 0 | U42: 0 | V42: 0 | W42: 0 | X42: 0 | Y42: 0 | Z42: 0 | AA42: 0 | AB42: 0 | AC42: Ok
A43: MELODY DUO WP66 8 10X400GR BAG IN | B43: 10 | C43: 0 | D43: 0 | E43: 3 | F43: 0 | G43: 0 | H43: 0 | I43: 0 | J43: 7 | K43: 10 | L43: 0 | M43: 0 | N43: 3 | O43: 0 | P43: 0 | Q43: 0 | R43: 0 | S43: 7 | T43: 0 | U43: 0 | V43: 0 | W43: 0 | X43: 0 | Y43: 0 | Z43: 0 | AA43: 0 | AB43: 0 | AC43: Ok
A44: MILLET HYBRID 9001 20X1.5 BAG IN | B44: 0 | C44: 0 | D44: 0 | E44: 0 | F44: 0 | G44: 0 | H44: 0 | I44: 0 | J44: 0 | K44: 0 | L44: 0 | M44: 0 | N44: 0 | O44: 0 | P44: 0 | Q44: 0 | R44: 0 | S44: 0 | T44: 0 | U44: 0 | V44: 0 | W44: 0 | X44: 0 | Y44: 0 | Z44: 0 | AA44: 0 | AB44: 0 | AC44: Ok
A45: MILLET HYBRID 9444 20X1.5KG BAG IN | B45: 0 | C45: 0 | D45: 0 | E45: 0 | F45: 0 | G45: 0 | H45: 0 | I45: 0 | J45: 0 | K45: 0 | L45: 0 | M45: 0 | N45: 0 | O45: 0 | P45: 0 | Q45: 0 | R45: 0 | S45: 0 | T45: 0 | U45: 0 | V45: 0 | W45: 0 | X45: 0 | Y45: 0 | Z45: 0 | AA45: 0 | AB45: 0 | AC45: Ok
A46: MILLET HYBRID 9450 20X1 5KG BAG IN | B46: 0 | C46: 0 | D46: 0 | E46: 0 | F46: 0 | G46: 0 | H46: 0 | I46: 0 | J46: 0 | K46: 0 | L46: 0 | M46: 0 | N46: 0 | O46: 0 | P46: 0 | Q46: 0 | R46: 0 | S46: 0 | T46: 0 | U46: 0 | V46: 0 | W46: 0 | X46: 0 | Y46: 0 | Z46: 0 | AA46: 0 | AB46: 0 | AC46: Ok
A47: MOVENTO ENERGY SC240 10X1L BOT IN | B47: 0 | C47: 0 | D47: 0 | E47: 0 | F47: 0 | G47: 0 | H47: 0 | I47: 0 | J47: 0 | K47: 0 | L47: 0 | M47: 0 | N47: 0 | O47: 0 | P47: 0 | Q47: 0 | R47: 0 | S47: 0 | T47: 0 | U47: 0 | V47: 0 | W47: 0 | X47: 0 | Y47: 0 | Z47: 0 | AA47: 0 | AB47: 0 | AC47: Ok
A48: MOVENTO ENERGY SC240 40X250ML BOT IN | B48: 80 | C48: 0 | D48: 0 | E48: 10 | F48: 0 | G48: 0 | H48: 0 | I48: 0 | J48: 70 | K48: 80 | L48: 0 | M48: 0 | N48: 10 | O48: 0 | P48: 0 | Q48: 0 | R48: 0 | S48: 70 | T48: 0 | U48: 0 | V48: 0 | W48: 0 | X48: 0 | Y48: 0 | Z48: 0 | AA48: 0 | AB48: 0 | AC48: Ok
A49: MOVENTO ENERGY SC240 50X100ML BOT IN | B49: 0 | C49: 0 | D49: 0 | E49: 0 | F49: 0 | G49: 0 | H49: 0 | I49: 0 | J49: 0 | K49: 0 | L49: 0 | M49: 0 | N49: 0 | O49: 0 | P49: 0 | Q49: 0 | R49: 0 | S49: 0 | T49: 0 | U49: 0 | V49: 0 | W49: 0 | X49: 0 | Y49: 0 | Z49: 0 | AA49: 0 | AB49: 0 | AC49: Ok
A50: MUSTARD 5222 30X1KG BAG IN | B50: 0 | C50: 0 | D50: 0 | E50: 0 | F50: 0 | G50: 0 | H50: 0 | I50: 0 | J50: 0 | K50: 0 | L50: 0 | M50: 0 | N50: 0 | O50: 0 | P50: 0 | Q50: 0 | R50: 0 | S50: 0 | T50: 0 | U50: 0 | V50: 0 | W50: 0 | X50: 0 | Y50: 0 | Z50: 0 | AA50: 0 | AB50: 0 | AC50: Ok
A51: MUSTARD 5222 60X500G BAG IN | B51: 0 | C51: 0 | D51: 0 | E51: 0 | F51: 0 | G51: 0 | H51: 0 | I51: 0 | J51: 0 | K51: 0 | L51: 0 | M51: 0 | N51: 0 | O51: 0 | P51: 0 | Q51: 0 | R51: 0 | S51: 0 | T51: 0 | U51: 0 | V51: 0 | W51: 0 | X51: 0 | Y51: 0 | Z51: 0 | AA51: 0 | AB51: 0 | AC51: Ok
A52: NATIVO WG75 100X50GR BAG IN | B52: 0 | C52: 0 | D52: 0 | E52: 0 | F52: 0 | G52: 0 | H52: 0 | I52: 0 | J52: 0 | K52: 0 | L52: 0 | M52: 0 | N52: 0 | O52: 0 | P52: 0 | Q52: 0 | R52: 0 | S52: 0 | T52: 0 | U52: 0 | V52: 0 | W52: 0 | X52: 0 | Y52: 0 | Z52: 0 | AA52: 0 | AB52: 0 | AC52: Ok
A53: NATIVO WG75 10X1KG BAG IN | B53: 0 | C53: 0 | D53: 0 | E53: 0 | F53: 0 | G53: 0 | H53: 0 | I53: 0 | J53: 0 | K53: 0 | L53: 0 | M53: 0 | N53: 0 | O53: 0 | P53: 0 | Q53: 0 | R53: 0 | S53: 0 | T53: 0 | U53: 0 | V53: 0 | W53: 0 | X53: 0 | Y53: 0 | Z53: 0 | AA53: 0 | AB53: 0 | AC53: Ok
A54: NATIVO WG75 20X500GR BAG IN | B54: 0 | C54: 0 | D54: 0 | E54: 0 | F54: 0 | G54: 0 | H54: 0 | I54: 0 | J54: 0 | K54: 0 | L54: 0 | M54: 0 | N54: 0 | O54: 0 | P54: 0 | Q54: 0 | R54: 0 | S54: 0 | T54: 0 | U54: 0 | V54: 0 | W54: 0 | X54: 0 | Y54: 0 | Z54: 0 | AA54: 0 | AB54: 0 | AC54: Ok
A55: NATIVO WG75 40X250GR BAG IN | B55: 0 | C55: 0 | D55: 0 | E55: 0 | F55: 0 | G55: 0 | H55: 0 | I55: 0 | J55: 0 | K55: 0 | L55: 0 | M55: 0 | N55: 0 | O55: 0 | P55: 0 | Q55: 0 | R55: 0 | S55: 0 | T55: 0 | U55: 0 | V55: 0 | W55: 0 | X55: 0 | Y55: 0 | Z55: 0 | AA55: 0 | AB55: 0 | AC55: Ok
A56: NATIVO WG75 50X100GR BAG IN | B56: 0 | C56: 0 | D56: 0 | E56: 0 | F56: 0 | G56: 0 | H56: 0 | I56: 0 | J56: 0 | K56: 0 | L56: 0 | M56: 0 | N56: 0 | O56: 0 | P56: 0 | Q56: 0 | R56: 0 | S56: 0 | T56: 0 | U56: 0 | V56: 0 | W56: 0 | X56: 0 | Y56: 0 | Z56: 0 | AA56: 0 | AB56: 0 | AC56: Ok
A57: OBERON (T) SC240 20X500ML BOT IN | B57: 0 | C57: 0 | D57: 0 | E57: 0 | F57: 0 | G57: 0 | H57: 0 | I57: 0 | J57: 0 | K57: 0 | L57: 0 | M57: 0 | N57: 0 | O57: 0 | P57: 0 | Q57: 0 | R57: 0 | S57: 0 | T57: 0 | U57: 0 | V57: 0 | W57: 0 | X57: 0 | Y57: 0 | Z57: 0 | AA57: 0 | AB57: 0 | AC57: Ok
A58: OBERON (T) SC240 40X200ML BOT IN | B58: 40 | C58: 120 | D58: 0 | E58: 80 | F58: 0 | G58: 0 | H58: 0 | I58: 0 | J58: 80 | K58: 40 | L58: 120 | M58: 0 | N58: 80 | O58: 0 | P58: 0 | Q58: 0 | R58: 0 | S58: 80 | T58: 0 | U58: 0 | V58: 0 | W58: 0 | X58: 0 | Y58: 0 | Z58: 0 | AA58: 0 | AB58: 0 | AC58: Ok
A59: OBERON (T) SC240 50X100ML BOT IN | B59: 0 | C59: 150 | D59: 0 | E59: 50 | F59: 0 | G59: 0 | H59: 0 | I59: 0 | J59: 100 | K59: 0 | L59: 150 | M59: 0 | N59: 50 | O59: 0 | P59: 0 | Q59: 0 | R59: 0 | S59: 100 | T59: 0 | U59: 0 | V59: 0 | W59: 0 | X59: 0 | Y59: 0 | Z59: 0 | AA59: 0 | AB59: 0 | AC59: Ok
A60: PLANOFIX SL4 5 40X250ML BOT IN | B60: 0 | C60: 0 | D60: 0 | E60: 0 | F60: 0 | G60: 0 | H60: 0 | I60: 0 | J60: 0 | K60: 0 | L60: 0 | M60: 0 | N60: 0 | O60: 0 | P60: 0 | Q60: 0 | R60: 0 | S60: 0 | T60: 0 | U60: 0 | V60: 0 | W60: 0 | X60: 0 | Y60: 0 | Z60: 0 | AA60: 0 | AB60: 0 | AC60: Ok
A61: PLANOFIX SL4 5 50X100ML BOT IN | B61: 0 | C61: 0 | D61: 0 | E61: 0 | F61: 0 | G61: 0 | H61: 0 | I61: 0 | J61: 0 | K61: 0 | L61: 0 | M61: 0 | N61: 0 | O61: 0 | P61: 0 | Q61: 0 | R61: 0 | S61: 0 | T61: 0 | U61: 0 | V61: 0 | W61: 0 | X61: 0 | Y61: 0 | Z61: 0 | AA61: 0 | AB61: 0 | AC61: Ok
A62: RAXIL EASY FS60 10X1L BOT IN | B62: 0 | C62: 0 | D62: 0 | E62: 0 | F62: 0 | G62: 0 | H62: 0 | I62: 0 | J62: 0 | K62: 0 | L62: 0 | M62: 0 | N62: 0 | O62: 0 | P62: 0 | Q62: 0 | R62: 0 | S62: 0 | T62: 0 | U62: 0 | V62: 0 | W62: 0 | X62: 0 | Y62: 0 | Z62: 0 | AA62: 0 | AB62: 0 | AC62: Ok
A63: REGENT (T) SC50 20X250ML BOT IN | B63: 0 | C63: 0 | D63: 0 | E63: 0 | F63: 0 | G63: 0 | H63: 0 | I63: 0 | J63: 0 | K63: 0 | L63: 0 | M63: 0 | N63: 0 | O63: 0 | P63: 0 | Q63: 0 | R63: 0 | S63: 0 | T63: 0 | U63: 0 | V63: 0 | W63: 0 | X63: 0 | Y63: 0 | Z63: 0 | AA63: 0 | AB63: 0 | AC63: Ok
A64: REGENT (T) SC50 20X500ML BOT IN | B64: 0 | C64: 0 | D64: 0 | E64: 0 | F64: 0 | G64: 0 | H64: 0 | I64: 0 | J64: 0 | K64: 0 | L64: 0 | M64: 0 | N64: 0 | O64: 0 | P64: 0 | Q64: 0 | R64: 0 | S64: 0 | T64: 0 | U64: 0 | V64: 0 | W64: 0 | X64: 0 | Y64: 0 | Z64: 0 | AA64: 0 | AB64: 0 | AC64: Ok
A65: REGENT (T) SC50 50X100ML BOT IN | B65: 0 | C65: 0 | D65: 0 | E65: 0 | F65: 0 | G65: 0 | H65: 0 | I65: 0 | J65: 0 | K65: 0 | L65: 0 | M65: 0 | N65: 0 | O65: 0 | P65: 0 | Q65: 0 | R65: 0 | S65: 0 | T65: 0 | U65: 0 | V65: 0 | W65: 0 | X65: 0 | Y65: 0 | Z65: 0 | AA65: 0 | AB65: 0 | AC65: Ok
A66: REGENT GOLD SC200 40X250ML BOT IN | B66: 0 | C66: 0 | D66: 0 | E66: 5 | F66: 0 | G66: 0 | H66: 0 | I66: 0 | J66: -5 | K66: 0 | L66: 0 | M66: 0 | N66: 5 | O66: 0 | P66: 0 | Q66: 0 | R66: 0 | S66: -5 | T66: 0 | U66: 0 | V66: 0 | W66: 0 | X66: 0 | Y66: 0 | Z66: 0 | AA66: 0 | AB66: 0 | AC66: Ok
A67: REGENT GOLD SC200 50X100ML BOT IN | B67: 0 | C67: 0 | D67: 0 | E67: 0 | F67: 0 | G67: 0 | H67: 0 | I67: 0 | J67: 0 | K67: 0 | L67: 0 | M67: 0 | N67: 0 | O67: 0 | P67: 0 | Q67: 0 | R67: 0 | S67: 0 | T67: 0 | U67: 0 | V67: 0 | W67: 0 | X67: 0 | Y67: 0 | Z67: 0 | AA67: 0 | AB67: 0 | AC67: Ok
A68: REGENT GR0 3 1X25KG BOX WW | B68: 0 | C68: 0 | D68: 0 | E68: 0 | F68: 0 | G68: 0 | H68: 0 | I68: 0 | J68: 0 | K68: 0 | L68: 0 | M68: 0 | N68: 0 | O68: 0 | P68: 0 | Q68: 0 | R68: 0 | S68: 0 | T68: 0 | U68: 0 | V68: 0 | W68: 0 | X68: 0 | Y68: 0 | Z68: 0 | AA68: 0 | AB68: 0 | AC68: Ok
A69: REGENT GR0 3 20X1KG BAG IN | B69: 1000 | C69: 0 | D69: 0 | E69: 820 | F69: 0 | G69: 0 | H69: 0 | I69: 0 | J69: 180 | K69: 1000 | L69: 0 | M69: 0 | N69: 820 | O69: 0 | P69: 0 | Q69: 0 | R69: 0 | S69: 180 | T69: 0 | U69: 0 | V69: 0 | W69: 0 | X69: 0 | Y69: 0 | Z69: 0 | AA69: 0 | AB69: 0 | AC69: Ok
A70: REGENT ULTRA GR0 6 5X4KG BAG IN | B70: 0 | C70: 0 | D70: 0 | E70: 0 | F70: 0 | G70: 0 | H70: 0 | I70: 0 | J70: 0 | K70: 0 | L70: 0 | M70: 0 | N70: 0 | O70: 0 | P70: 0 | Q70: 0 | R70: 0 | S70: 0 | T70: 0 | U70: 0 | V70: 0 | W70: 0 | X70: 0 | Y70: 0 | Z70: 0 | AA70: 0 | AB70: 0 | AC70: Ok
A71: SECTIN WG60 10X1KG BAG IN | B71: 0 | C71: 0 | D71: 0 | E71: 0 | F71: 0 | G71: 0 | H71: 0 | I71: 0 | J71: 0 | K71: 0 | L71: 0 | M71: 0 | N71: 0 | O71: 0 | P71: 0 | Q71: 0 | R71: 0 | S71: 0 | T71: 0 | U71: 0 | V71: 0 | W71: 0 | X71: 0 | Y71: 0 | Z71: 0 | AA71: 0 | AB71: 0 | AC71: Ok
A72: SENCOR WP70 60X100GR BAG IN | B72: 0 | C72: 0 | D72: 0 | E72: 0 | F72: 0 | G72: 0 | H72: 0 | I72: 0 | J72: 0 | K72: 0 | L72: 0 | M72: 0 | N72: 0 | O72: 0 | P72: 0 | Q72: 0 | R72: 0 | S72: 0 | T72: 0 | U72: 0 | V72: 0 | W72: 0 | X72: 0 | Y72: 0 | Z72: 0 | AA72: 0 | AB72: 0 | AC72: Ok
A73: SIMBOLA (T) SG20 20X250G BOT IN | B73: 0 | C73: 0 | D73: 0 | E73: 0 | F73: 0 | G73: 0 | H73: 0 | I73: 0 | J73: 0 | K73: 0 | L73: 0 | M73: 0 | N73: 0 | O73: 0 | P73: 0 | Q73: 0 | R73: 0 | S73: 0 | T73: 0 | U73: 0 | V73: 0 | W73: 0 | X73: 0 | Y73: 0 | Z73: 0 | AA73: 0 | AB73: 0 | AC73: Ok
A74: SOLOMON OD300 10X1L BOT IN | B74: 0 | C74: 10 | D74: 0 | E74: 0 | F74: 0 | G74: 0 | H74: 0 | I74: 0 | J74: 10 | K74: 0 | L74: 10 | M74: 0 | N74: 0 | O74: 0 | P74: 0 | Q74: 0 | R74: 0 | S74: 10 | T74: 0 | U74: 0 | V74: 0 | W74: 0 | X74: 0 | Y74: 0 | Z74: 0 | AA74: 0 | AB74: 0 | AC74: Ok
A75: SOLOMON OD300 20X500ML BOT IN | B75: 0 | C75: 40 | D75: 0 | E75: 20 | F75: 0 | G75: 0 | H75: 0 | I75: 0 | J75: 20 | K75: 0 | L75: 40 | M75: 0 | N75: 20 | O75: 0 | P75: 0 | Q75: 0 | R75: 0 | S75: 20 | T75: 0 | U75: 0 | V75: 0 | W75: 0 | X75: 0 | Y75: 0 | Z75: 0 | AA75: 0 | AB75: 0 | AC75: Ok
A76: SOLOMON OD300 40X250ML BOT IN | B76: 80 | C76: 120 | D76: 0 | E76: 50 | F76: 0 | G76: 0 | H76: 0 | I76: 0 | J76: 150 | K76: 80 | L76: 120 | M76: 0 | N76: 50 | O76: 0 | P76: 0 | Q76: 0 | R76: 0 | S76: 150 | T76: 0 | U76: 0 | V76: 0 | W76: 0 | X76: 0 | Y76: 0 | Z76: 0 | AA76: 0 | AB76: 0 | AC76: Ok
A77: SOLOMON OD300 50X100ML BOT IN | B77: 50 | C77: 0 | D77: 0 | E77: 50 | F77: 0 | G77: 0 | H77: 0 | I77: 0 | J77: 0 | K77: 50 | L77: 0 | M77: 0 | N77: 50 | O77: 0 | P77: 0 | Q77: 0 | R77: 0 | S77: 0 | T77: 0 | U77: 0 | V77: 0 | W77: 0 | X77: 0 | Y77: 0 | Z77: 0 | AA77: 0 | AB77: 0 | AC77: Ok
A78: SUNRICE WG15 100X50GR BOT IN | B78: 0 | C78: 0 | D78: 0 | E78: 0 | F78: 0 | G78: 0 | H78: 0 | I78: 0 | J78: 0 | K78: 0 | L78: 0 | M78: 0 | N78: 0 | O78: 0 | P78: 0 | Q78: 0 | R78: 0 | S78: 0 | T78: 0 | U78: 0 | V78: 0 | W78: 0 | X78: 0 | Y78: 0 | Z78: 0 | AA78: 0 | AB78: 0 | AC78: Ok
A79: SURPASS 7272 BG2 (LOC) 20X450G BAG IN | B79: 160 | C79: 200 | D79: 0 | E79: 205 | F79: 0 | G79: 0 | H79: 0 | I79: 0 | J79: 155 | K79: 160 | L79: 200 | M79: 0 | N79: 205 | O79: 0 | P79: 0 | Q79: 0 | R79: 0 | S79: 155 | T79: 0 | U79: 0 | V79: 0 | W79: 0 | X79: 0 | Y79: 0 | Z79: 0 | AA79: 0 | AB79: 0 | AC79: Ok
A80: VELUM PRIME SC400 20X500ML BOT IN | B80: 20 | C80: 0 | D80: 0 | E80: 1 | F80: 0 | G80: 0 | H80: 0 | I80: 0 | J80: 19 | K80: 20 | L80: 0 | M80: 0 | N80: 1 | O80: 0 | P80: 0 | Q80: 0 | R80: 0 | S80: 19 | T80: 0 | U80: 0 | V80: 0 | W80: 0 | X80: 0 | Y80: 0 | Z80: 0 | AA80: 0 | AB80: 0 | AC80: Ok
A81: VELUM PRIME SC400 40X250ML BOT IN | B81: 40 | C81: 0 | D81: 0 | E81: 0 | F81: 0 | G81: 0 | H81: 0 | I81: 0 | J81: 40 | K81: 40 | L81: 0 | M81: 0 | N81: 0 | O81: 0 | P81: 0 | Q81: 0 | R81: 0 | S81: 40 | T81: 0 | U81: 0 | V81: 0 | W81: 0 | X81: 0 | Y81: 0 | Z81: 0 | AA81: 0 | AB81: 0 | AC81: Ok
A82: WHIPSUPER (T) EC90 40X250ML BOT IN | B82: 0 | C82: 0 | D82: 0 | E82: 0 | F82: 0 | G82: 0 | H82: 0 | I82: 0 | J82: 0 | K82: 0 | L82: 0 | M82: 0 | N82: 0 | O82: 0 | P82: 0 | Q82: 0 | R82: 0 | S82: 0 | T82: 0 | U82: 0 | V82: 0 | W82: 0 | X82: 0 | Y82: 0 | Z82: 0 | AA82: 0 | AB82: 0 | AC82: Ok
A83: SURPASS 7172 BG2 20X450GR BAG IN | B83: 480 | C83: 400 | D83: 0 | E83: 600 | F83: 0 | G83: 0 | H83: 0 | I83: 0 | J83: 280 | K83: 480 | L83: 400 | M83: 0 | N83: 600 | O83: 0 | P83: 0 | Q83: 0 | R83: 0 | S83: 280 | T83: 0 | U83: 0 | V83: 0 | W83: 0 | X83: 0 | Y83: 0 | Z83: 0 | AA83: 0 | AB83: 0 | AC83: Ok
A84: DECIS EC101-2 50X100ML BOX IN | B84: 0 | C84: 0 | D84: 0 | E84: 0 | F84: 0 | G84: 0 | H84: 0 | I84: 0 | J84: 0 | K84: 0 | L84: 0 | M84: 0 | N84: 0 | O84: 0 | P84: 0 | Q84: 0 | R84: 0 | S84: 0 | T84: 0 | U84: 0 | V84: 0 | W84: 0 | X84: 0 | Y84: 0 | Z84: 0 | AA84: 0 | AB84: 0 | AC84: Ok
A85: MILLET PA 9180 (LOC) 20X1.50KG BAG IN | B85: 0 | C85: 0 | D85: 0 | E85: 0 | F85: 0 | G85: 0 | H85: 0 | I85: 0 | J85: 0 | K85: 0 | L85: 0 | M85: 0 | N85: 0 | O85: 0 | P85: 0 | Q85: 0 | R85: 0 | S85: 0 | T85: 0 | U85: 0 | V85: 0 | W85: 0 | X85: 0 | Y85: 0 | Z85: 0 | AA85: 0 | AB85: 0 | AC85: Ok
A86: MUSTARD PA 5210 (LOC) 30X1KG BAG IN | B86: 0 | C86: 0 | D86: 0 | E86: 0 | F86: 0 | G86: 0 | H86: 0 | I86: 0 | J86: 0 | K86: 0 | L86: 0 | M86: 0 | N86: 0 | O86: 0 | P86: 0 | Q86: 0 | R86: 0 | S86: 0 | T86: 0 | U86: 0 | V86: 0 | W86: 0 | X86: 0 | Y86: 0 | Z86: 0 | AA86: 0 | AB86: 0 | AC86: Ok
A87: MUSTARD PA 5232 (LOC) 30X1KG BAG IN | B87: 0 | C87: 0 | D87: 0 | E87: 0 | F87: 0 | G87: 0 | H87: 0 | I87: 0 | J87: 0 | K87: 0 | L87: 0 | M87: 0 | N87: 0 | O87: 0 | P87: 0 | Q87: 0 | R87: 0 | S87: 0 | T87: 0 | U87: 0 | V87: 0 | W87: 0 | X87: 0 | Y87: 0 | Z87: 0 | AA87: 0 | AB87: 0 | AC87: Ok
A88: RAXIL EASY FS60 10X(20X13.4ML) BOT IN | B88: 0 | C88: 0 | D88: 0 | E88: 0 | F88: 0 | G88: 0 | H88: 0 | I88: 0 | J88: 0 | K88: 0 | L88: 0 | M88: 0 | N88: 0 | O88: 0 | P88: 0 | Q88: 0 | R88: 0 | S88: 0 | T88: 0 | U88: 0 | V88: 0 | W88: 0 | X88: 0 | Y88: 0 | Z88: 0 | AA88: 0 | AB88: 0 | AC88: Ok
A89: SECTIN WG60 20X600GR BAG IN | B89: 0 | C89: 0 | D89: 0 | E89: 0 | F89: 0 | G89: 0 | H89: 0 | I89: 0 | J89: 0 | K89: 0 | L89: 0 | M89: 0 | N89: 0 | O89: 0 | P89: 0 | Q89: 0 | R89: 0 | S89: 0 | T89: 0 | U89: 0 | V89: 0 | W89: 0 | X89: 0 | Y89: 0 | Z89: 0 | AA89: 0 | AB89: 0 | AC89: Ok
A90: BUONOS SC430 40X250ML BOT IN | B90: 0 | C90: 0 | D90: 0 | E90: 5 | F90: 0 | G90: 0 | H90: 0 | I90: 0 | J90: -5 | K90: 0 | L90: 0 | M90: 0 | N90: 5 | O90: 0 | P90: 0 | Q90: 0 | R90: 0 | S90: -5 | T90: 0 | U90: 0 | V90: 0 | W90: 0 | X90: 0 | Y90: 0 | Z90: 0 | AA90: 0 | AB90: 0 | AC90: Ok
A91: BUONOS SC430 20X500ML BOT IN | B91: 0 | C91: 0 | D91: 0 | E91: 2 | F91: 0 | G91: 0 | H91: 0 | I91: 0 | J91: -2 | K91: 0 | L91: 0 | M91: 0 | N91: 2 | O91: 0 | P91: 0 | Q91: 0 | R91: 0 | S91: -2 | T91: 0 | U91: 0 | V91: 0 | W91: 0 | X91: 0 | Y91: 0 | Z91: 0 | AA91: 0 | AB91: 0 | AC91: Ok
A92: ADUE WG70 15X40G BOT IN | B92: 0 | C92: 0 | D92: 0 | E92: 0 | F92: 0 | G92: 0 | H92: 0 | I92: 0 | J92: 0 | K92: 0 | L92: 0 | M92: 0 | N92: 0 | O92: 0 | P92: 0 | Q92: 0 | R92: 0 | S92: 0 | T92: 0 | U92: 0 | V92: 0 | W92: 0 | X92: 0 | Y92: 0 | Z92: 0 | AA92: 0 | AB92: 0 | AC92: Ok
A93: ALANTO (T) SC240 40X250ML BOT IN | B93: 0 | C93: 0 | D93: 0 | E93: 0 | F93: 0 | G93: 0 | H93: 0 | I93: 0 | J93: 0 | K93: 0 | L93: 0 | M93: 0 | N93: 0 | O93: 0 | P93: 0 | Q93: 0 | R93: 0 | S93: 0 | T93: 0 | U93: 0 | V93: 0 | W93: 0 | X93: 0 | Y93: 0 | Z93: 0 | AA93: 0 | AB93: 0 | AC93: Ok
A94: ALANTO (T) SC240 50X100ML BOT IN | B94: 0 | C94: 0 | D94: 0 | E94: 0 | F94: 0 | G94: 0 | H94: 0 | I94: 0 | J94: 0 | K94: 0 | L94: 0 | M94: 0 | N94: 0 | O94: 0 | P94: 0 | Q94: 0 | R94: 0 | S94: 0 | T94: 0 | U94: 0 | V94: 0 | W94: 0 | X94: 0 | Y94: 0 | Z94: 0 | AA94: 0 | AB94: 0 | AC94: Ok
A95: CONFIDOR (T) SL200 100X50ML BOT IN | B95: 0 | C95: 0 | D95: 0 | E95: 0 | F95: 0 | G95: 0 | H95: 0 | I95: 0 | J95: 0 | K95: 0 | L95: 0 | M95: 0 | N95: 0 | O95: 0 | P95: 0 | Q95: 0 | R95: 0 | S95: 0 | T95: 0 | U95: 0 | V95: 0 | W95: 0 | X95: 0 | Y95: 0 | Z95: 0 | AA95: 0 | AB95: 0 | AC95: Ok
A96: CONFIDOR SUPER (T) SC350 50X100ML BOT IN | B96: 0 | C96: 0 | D96: 0 | E96: 0 | F96: 0 | G96: 0 | H96: 0 | I96: 0 | J96: 0 | K96: 0 | L96: 0 | M96: 0 | N96: 0 | O96: 0 | P96: 0 | Q96: 0 | R96: 0 | S96: 0 | T96: 0 | U96: 0 | V96: 0 | W96: 0 | X96: 0 | Y96: 0 | Z96: 0 | AA96: 0 | AB96: 0 | AC96: Ok
A97: CONFIDOR SUPER (T) SC350 50X50ML BOT IN | B97: 0 | C97: 0 | D97: 0 | E97: 0 | F97: 0 | G97: 0 | H97: 0 | I97: 0 | J97: 0 | K97: 0 | L97: 0 | M97: 0 | N97: 0 | O97: 0 | P97: 0 | Q97: 0 | R97: 0 | S97: 0 | T97: 0 | U97: 0 | V97: 0 | W97: 0 | X97: 0 | Y97: 0 | Z97: 0 | AA97: 0 | AB97: 0 | AC97: Ok
A98: DECIS EC 28 10X1L BOT IN | B98: 0 | C98: 0 | D98: 0 | E98: 0 | F98: 0 | G98: 0 | H98: 0 | I98: 0 | J98: 0 | K98: 0 | L98: 0 | M98: 0 | N98: 0 | O98: 0 | P98: 0 | Q98: 0 | R98: 0 | S98: 0 | T98: 0 | U98: 0 | V98: 0 | W98: 0 | X98: 0 | Y98: 0 | Z98: 0 | AA98: 0 | AB98: 0 | AC98: Ok
A99: DISCOUNTINUE PRODUCT | B99: 0 | C99: 0 | D99: 0 | E99: 0 | F99: 0 | G99: 0 | H99: 0 | I99: 0 | J99: 0 | K99: 0 | L99: 0 | M99: 0 | N99: 0 | O99: 0 | P99: 0 | Q99: 0 | R99: 0 | S99: 0 | T99: 0 | U99: 0 | V99: 0 | W99: 0 | X99: 0 | Y99: 0 | Z99: 0 | AA99: 0 | AB99: 0 | AC99: Ok
A100: INFINITO SC687 5 20X500ML BOT IN | B100: 0 | C100: 0 | D100: 0 | E100: 0 | F100: 0 | G100: 0 | H100: 0 | I100: 0 | J100: 0 | K100: 0 | L100: 0 | M100: 0 | N100: 0 | O100: 0 | P100: 0 | Q100: 0 | R100: 0 | S100: 0 | T100: 0 | U100: 0 | V100: 0 | W100: 0 | X100: 0 | Y100: 0 | Z100: 0 | AA100: 0 | AB100: 0 | AC100: Ok
A101: LUCIFER (T) WP15 25X160GR BAG IN | B101: 0 | C101: 0 | D101: 0 | E101: 0 | F101: 0 | G101: 0 | H101: 0 | I101: 0 | J101: 0 | K101: 0 | L101: 0 | M101: 0 | N101: 0 | O101: 0 | P101: 0 | Q101: 0 | R101: 0 | S101: 0 | T101: 0 | U101: 0 | V101: 0 | W101: 0 | X101: 0 | Y101: 0 | Z101: 0 | AA101: 0 | AB101: 0 | AC101: Ok
A102: MILLET 9001 (LOC) 6X4.5KG BAG IN | B102: 0 | C102: 0 | D102: 0 | E102: 0 | F102: 0 | G102: 0 | H102: 0 | I102: 0 | J102: 0 | K102: 0 | L102: 0 | M102: 0 | N102: 0 | O102: 0 | P102: 0 | Q102: 0 | R102: 0 | S102: 0 | T102: 0 | U102: 0 | V102: 0 | W102: 0 | X102: 0 | Y102: 0 | Z102: 0 | AA102: 0 | AB102: 0 | AC102: Ok
A103: MILLET HYBRID 9444 GOLD 20X1.50KG BAG IN | B103: 0 | C103: 0 | D103: 0 | E103: 0 | F103: 0 | G103: 0 | H103: 0 | I103: 0 | J103: 0 | K103: 0 | L103: 0 | M103: 0 | N103: 0 | O103: 0 | P103: 0 | Q103: 0 | R103: 0 | S103: 0 | T103: 0 | U103: 0 | V103: 0 | W103: 0 | X103: 0 | Y103: 0 | Z103: 0 | AA103: 0 | AB103: 0 | AC103: Ok
A104: MILLET HYBRID PA9072 20X1.5KG BAG IN | B104: 0 | C104: 0 | D104: 0 | E104: 0 | F104: 0 | G104: 0 | H104: 0 | I104: 0 | J104: 0 | K104: 0 | L104: 0 | M104: 0 | N104: 0 | O104: 0 | P104: 0 | Q104: 0 | R104: 0 | S104: 0 | T104: 0 | U104: 0 | V104: 0 | W104: 0 | X104: 0 | Y104: 0 | Z104: 0 | AA104: 0 | AB104: 0 | AC104: Ok
A105: REGENT (T) SC50 10X1L BOT IN | B105: 0 | C105: 0 | D105: 0 | E105: 0 | F105: 0 | G105: 0 | H105: 0 | I105: 0 | J105: 0 | K105: 0 | L105: 0 | M105: 0 | N105: 0 | O105: 0 | P105: 0 | Q105: 0 | R105: 0 | S105: 0 | T105: 0 | U105: 0 | V105: 0 | W105: 0 | X105: 0 | Y105: 0 | Z105: 0 | AA105: 0 | AB105: 0 | AC105: Ok
A106: SECTIN WG60 50X100GR BAG IN | B106: 0 | C106: 0 | D106: 0 | E106: 0 | F106: 0 | G106: 0 | H106: 0 | I106: 0 | J106: 0 | K106: 0 | L106: 0 | M106: 0 | N106: 0 | O106: 0 | P106: 0 | Q106: 0 | R106: 0 | S106: 0 | T106: 0 | U106: 0 | V106: 0 | W106: 0 | X106: 0 | Y106: 0 | Z106: 0 | AA106: 0 | AB106: 0 | AC106: Ok
A107: SPINTOR SC495 20X75ML BOT IN | B107: 0 | C107: 0 | D107: 0 | E107: 0 | F107: 0 | G107: 0 | H107: 0 | I107: 0 | J107: 0 | K107: 0 | L107: 0 | M107: 0 | N107: 0 | O107: 0 | P107: 0 | Q107: 0 | R107: 0 | S107: 0 | T107: 0 | U107: 0 | V107: 0 | W107: 0 | X107: 0 | Y107: 0 | Z107: 0 | AA107: 0 | AB107: 0 | AC107: Ok
A108: Total | B108: 2198 | C108: 7010 | D108: 0 | E108: 3153 | F108: 0 | G108: 0 | H108: 0 | I108: 0 | J108: 6055 | K108: 2070 | L108: 7010 | M108: 0 | N108: 3153 | O108: 0 | P108: 0 | Q108: 0 | R108: 0 | S108: 5927 | T108: =SUM(T4:T107) -> 0 | U108: 0 | V108: 0 | W108: 0 | X108: 0 | Y108: 0 | Z108: 0 | AA108: 0 | AB108: =SUM(AB4:AB107) -> 0
